Workbook

Sheet Hoja1
P1: Código: M-AC-F012
P2: Versión: 01 | AB2: TIPO DE ENTIDAD O USUARIO | AG2: DÍAS NO LABORABLES
P3: Fecha: 15/01/2017 | AB3: CIUDADANO | AG3: 43831
P4: Página: 1 de 1 | AB4: ACADEMIA | AG4: 43834
AB5: EMPRESA PRIVADA | AG5: 43835
B6: Dependencia: | AB6: ENTIDAD PÚBLICA | AG6: 43836
AB7: EXTRANJERO | AG7: 43841
B8: Período de Reporte | AB8: FUNCIONARIO IDEAM | AG8: 43842
AB9: ONG/ORG | AG9: 43848
A10: DATOS DEL REQUERIMIENTO | F10: POSTURA DE REQUERIMIENTO | I10: RESOLUCION DEL REQUERIMIENTO | N10: ANÁLISIS DE RESPUESTAS | AG10: 43849
A11: No. | B11: No. DE REQUERIMIENTO | C11: FECHA DE REQUERIMIENTO (dd/mm/aaaa) | D11: TIPO DE ENTIDAD O USUARIO | E11: GÉNERO | F11: MEDIO RECEPCIÓN | G11: TIPO DE REQUERIMIENTO | H11: PRODUCTO O SERVICIO AL CUAL SE REFIERE EL REQUERIMIENTO | I11: ¿ EL REQUERIMIENTO FUE ESCALADO? | J11: DEPENDENCIA QUE DA RESPUESTA O A LA QUE SE DIRECCIONA | K11: FECHA DE RESOLUCIÓN DEL REQUERIMIENTO (dd/mm/aaaa) | L11: CANAL POR EL CUAL FUE RESUELTO EL REQUERIMIENTO | M11: OBSERVACIONES | N11: FECHA OPORTUNA DE RESPUESTA | O11: ESTADO (A TIEMPO, FUERA DE TIEMPO, SIN RESPUESTA) | P11: TIEMPO QUE TARDÓ EN DAR RESPUESTA | Q11: DÍAS VENCIDOS CON RESPECTO A FECHA OPORTUNA DE RESPUESTA | AB11: GÉNERO | AG11: 43855
A12: =IF(B12<>"",1,"") -> 1 | B12: 20209050088412 | C12: 44105 | D12: FUNCIONARIO IDEAM | E12: MASCULINO | F12: MODULO CONTACTENOS | G12: SOLICITUD DE INFORMACIÓN Y DOCUMENTOS | H12: ADMINISTRATIVA | I12: SI | J12: GRUPO DE ADMINISTRACIÓN Y DESARROLLO DEL TALENTO HUMANO | K12: 44109 | L12: CORREO ELECTRÓNICO | N12: =IFERROR(WORKDAY(C12,T12,DiasNOLaborables),"") -> 44134 | O12: =+IF(C12="","",IF(K12="","SIN RESPUESTA",(IF(K12<=N12,"A TIEMPO","FUERA DE TIEMPO")))) -> A TIEMPO | P12: =IF(K12="","",NETWORKDAYS(C12+1,K12,DiasNOLaborables)) -> 2 | Q12: =IF(NETWORKDAYS(N12+1,K12,DiasNOLaborables)<=0,"",NETWORKDAYS(N12+1,K12,DiasNOLaborables)) ->  | T12: =IFERROR(VLOOKUP(G12,$AB$50:$AC$63,2),"") -> 20 | AB12: FEMENINO | AG12: 43856
A13: =IF(A12<>"",A12+1,"") -> 2 | B13: 20209050088482 | C13: 44105 | D13: CIUDADANO | E13: MASCULINO | F13: MODULO CONTACTENOS | G13: SOLICITUD DE INFORMACIÓN Y DOCUMENTOS | H13: ADMINISTRATIVA | I13: SI | J13: GRUPO DE TESORERÍA | K13: 44105 | L13: CORREO ELECTRÓNICO | N13: =IFERROR(WORKDAY(C13,T13,DiasNOLaborables),"") -> 44134 | O13: =+IF(C13="","",IF(K13="","SIN RESPUESTA",(IF(K13<=N13,"A TIEMPO","FUERA DE TIEMPO")))) -> A TIEMPO | P13: =IF(K13="","",NETWORKDAYS(C13+1,K13,DiasNOLaborables)) -> -2 | T13: =IFERROR(VLOOKUP(G13,$AB$50:$AC$63,2),"") -> 20 | AB13: MASCULINO | AG13: 43862
A14: =IF(B13<>"",A13+1,"") -> 3 | B14: 20209050088592 | C14: 44105 | D14: CIUDADANO | E14: FEMENINO | F14: MODULO CONTACTENOS | G14: SOLICITUD DE INFORMACIÓN Y DOCUMENTOS | H14: REGISTROS AMBIENTALES | I14: SI | J14: SUBDIRECCIÓN DE ESTUDIOS AMBIENTALES | K14: 44127 | L14: CORREO ELECTRÓNICO | N14: =IFERROR(WORKDAY(C14,T14,DiasNOLaborables),"") -> 44134 | O14: =+IF(C14="","",IF(K14="","SIN RESPUESTA",(IF(K14<=N14,"A TIEMPO","FUERA DE TIEMPO")))) -> A TIEMPO | P14: =IF(K14="","",NETWORKDAYS(C14+1,K14,DiasNOLaborables)) -> 15 | T14: 20 | AB14: PERSONA JURÍDICA | AG14: 43863
A15: 4 | B15: 20209050088612 | C15: 44105 | D15: CIUDADANO | E15: FEMENINO | F15: MODULO CONTACTENOS | G15: CERTIFICACIONES DE TIEMPO, CLIMA Y EVENTOS HIDROLÓGICOS | H15: CERTIFICACIONES DE TIEMPO Y CLIMA | I15: SI | J15: SUBDIRECCIÓN DE METEOROLOGÍA | K15: 44125 | L15: CORREO ELECTRÓNICO | N15: =IFERROR(WORKDAY(C15,T15,DiasNOLaborables),"") -> 44155 | O15: =+IF(C15="","",IF(K15="","SIN RESPUESTA",(IF(K15<=N15,"A TIEMPO","FUERA DE TIEMPO")))) -> A TIEMPO | P15: =IF(K15="","",NETWORKDAYS(C15+1,K15,DiasNOLaborables)) -> 13 | T15: 35 | AG15: 43869
A16: 5 | B16: 20209050088662 | C16: 44105 | D16: CIUDADANO | E16: MASCULINO | F16: MODULO CONTACTENOS | G16: SOLICITUD DE INFORMACIÓN Y DOCUMENTOS | H16: ADMINISTRATIVA | I16: SI | J16: GRUPO DE ADMINISTRACIÓN Y DESARROLLO DEL TALENTO HUMANO | K16: 44118 | L16: CORREO ELECTRÓNICO | N16: =IFERROR(WORKDAY(C16,T16,DiasNOLaborables),"") -> 44134 | O16: =+IF(C16="","",IF(K16="","SIN RESPUESTA",(IF(K16<=N16,"A TIEMPO","FUERA DE TIEMPO")))) -> A TIEMPO | P16: =IF(K16="","",NETWORKDAYS(C16+1,K16,DiasNOLaborables)) -> 8 | T16: 20 | AB16: DEPENDENCIA QUE DA RESPUESTA O LA QUE SE DIRECCIONA | AG16: 43870
A17: 6 | B17: 20209050088672 | C17: 44105 | D17: CIUDADANO | E17: MASCULINO | F17: MODULO CONTACTENOS | G17: SOLICITUD DE INFORMACIÓN Y DOCUMENTOS | H17: ADMINISTRATIVA | I17: SI | J17: GRUPO DE ADMINISTRACIÓN Y DESARROLLO DEL TALENTO HUMANO | K17: 44118 | L17: CORREO ELECTRÓNICO | N17: =IFERROR(WORKDAY(C17,T17,DiasNOLaborables),"") -> 44134 | O17: =+IF(C17="","",IF(K17="","SIN RESPUESTA",(IF(K17<=N17,"A TIEMPO","FUERA DE TIEMPO")))) -> A TIEMPO | P17: =IF(K17="","",NETWORKDAYS(C17+1,K17,DiasNOLaborables)) -> 8 | T17: 20 | AB17: AREA OPERATIVA No. 1 | AG17: 43876
A18: 7 | B18: 20209050088632 | C18: 44105 | D18: CIUDADANO | E18: MASCULINO | F18: CORREO ELECTRÓNICO | G18: SOLICITUD DE INFORMACIÓN Y DOCUMENTOS | H18: SOLICITUD DE INFORMACIÓN HIDROMETEOROLÓGICA | I18: NO | J18: GRUPO DE ATENCIÓN AL CIUDADANO | K18: 44107 | L18: CORREO ELECTRÓNICO | N18: =IFERROR(WORKDAY(C18,T18,DiasNOLaborables),"") -> 44134 | O18: =+IF(C18="","",IF(K18="","SIN RESPUESTA",(IF(K18<=N18,"A TIEMPO","FUERA DE TIEMPO")))) -> A TIEMPO | P18: =IF(K18="","",NETWORKDAYS(C18+1,K18,DiasNOLaborables)) -> 1 | T18: 20 | AB18: AREA OPERATIVA No. 2 | AG18: 43877
A19: 8 | B19: 20209050088602 | C19: 44105 | D19: CIUDADANO | E19: FEMENINO | F19: CORREO ELECTRÓNICO | G19: SOLICITUD DE INFORMACIÓN Y DOCUMENTOS | H19: SOLICITUD DE INFORMACIÓN HIDROMETEOROLÓGICA | I19: NO | J19: GRUPO DE ATENCIÓN AL CIUDADANO | K19: 44107 | L19: CORREO ELECTRÓNICO | N19: =IFERROR(WORKDAY(C19,T19,DiasNOLaborables),"") -> 44134 | O19: =+IF(C19="","",IF(K19="","SIN RESPUESTA",(IF(K19<=N19,"A TIEMPO","FUERA DE TIEMPO")))) -> A TIEMPO | P19: =IF(K19="","",NETWORKDAYS(C19+1,K19,DiasNOLaborables)) -> 1 | T19: 20 | AB19: AREA OPERATIVA No. 3 | AG19: 43883
A20: 9 | B20: 20209050088232 | C20: 44105 | D20: CIUDADANO | E20: MASCULINO | F20: MODULO CONTACTENOS | G20: SOLICITUD DE INFORMACIÓN Y DOCUMENTOS | H20: SOLICITUD DE INFORMACIÓN HIDROMETEOROLÓGICA | I20: NO | J20: GRUPO DE ATENCIÓN AL CIUDADANO | K20: 44118 | L20: CORREO ELECTRÓNICO | N20: =IFERROR(WORKDAY(C20,T20,DiasNOLaborables),"") -> 44134 | O20: =+IF(C20="","",IF(K20="","SIN RESPUESTA",(IF(K20<=N20,"A TIEMPO","FUERA DE TIEMPO")))) -> A TIEMPO | P20: =IF(K20="","",NETWORKDAYS(C20+1,K20,DiasNOLaborables)) -> 8 | T20: 20 | AB20: AREA OPERATIVA No. 4 | AG20: 43884
A21: 10 | B21: 20209050088252 | C21: 44105 | D21: CIUDADANO | E21: MASCULINO | F21: MODULO CONTACTENOS | G21: SOLICITUD DE INFORMACIÓN Y DOCUMENTOS | H21: SOLICITUD DE INFORMACIÓN HIDROMETEOROLÓGICA | I21: NO | J21: GRUPO DE ATENCIÓN AL CIUDADANO | K21: 44118 | L21: CORREO ELECTRÓNICO | N21: =IFERROR(WORKDAY(C21,T21,DiasNOLaborables),"") -> 44134 | O21: =+IF(C21="","",IF(K21="","SIN RESPUESTA",(IF(K21<=N21,"A TIEMPO","FUERA DE TIEMPO")))) -> A TIEMPO | P21: =IF(K21="","",NETWORKDAYS(C21+1,K21,DiasNOLaborables)) -> 8 | T21: 20 | AB21: AREA OPERATIVA No. 5 | AG21: 43890
A22: 11 | B22: 20209050088272 | C22: 44105 | D22: CIUDADANO | E22: MASCULINO | F22: MODULO CONTACTENOS | G22: SOLICITUD DE INFORMACIÓN Y DOCUMENTOS | H22: SOLICITUD DE INFORMACIÓN HIDROMETEOROLÓGICA | I22: NO | J22: GRUPO DE ATENCIÓN AL CIUDADANO | K22: 44118 | L22: CORREO ELECTRÓNICO | N22: =IFERROR(WORKDAY(C22,T22,DiasNOLaborables),"") -> 44134 | O22: =+IF(C22="","",IF(K22="","SIN RESPUESTA",(IF(K22<=N22,"A TIEMPO","FUERA DE TIEMPO")))) -> A TIEMPO | P22: =IF(K22="","",NETWORKDAYS(C22+1,K22,DiasNOLaborables)) -> 8 | T22: 20 | AB22: AREA OPERATIVA No. 6 | AG22: 43891
A23: 12 | B23: 20209050088402 | C23: 44105 | D23: CIUDADANO | E23: MASCULINO | F23: MODULO CONTACTENOS | G23: SOLICITUD DE INFORMACIÓN Y DOCUMENTOS | H23: SOLICITUD DE INFORMACIÓN HIDROMETEOROLÓGICA | I23: NO | J23: GRUPO DE ATENCIÓN AL CIUDADANO | K23: 44118 | L23: CORREO ELECTRÓNICO | N23: =IFERROR(WORKDAY(C23,T23,DiasNOLaborables),"") -> 44134 | O23: =+IF(C23="","",IF(K23="","SIN RESPUESTA",(IF(K23<=N23,"A TIEMPO","FUERA DE TIEMPO")))) -> A TIEMPO | P23: =IF(K23="","",NETWORKDAYS(C23+1,K23,DiasNOLaborables)) -> 8 | T23: 20 | AB23: AREA OPERATIVA No. 7 | AG23: 43897
A24: 13 | B24: 20209050088452 | C24: 44105 | D24: ACADEMIA | E24: MASCULINO | F24: MODULO CONTACTENOS | G24: SOLICITUD DE INFORMACIÓN Y DOCUMENTOS | H24: SOLICITUD DE INFORMACIÓN HIDROMETEOROLÓGICA | I24: NO | J24: GRUPO DE ATENCIÓN AL CIUDADANO | K24: 44118 | L24: CORREO ELECTRÓNICO | N24: =IFERROR(WORKDAY(C24,T24,DiasNOLaborables),"") -> 44134 | O24: =+IF(C24="","",IF(K24="","SIN RESPUESTA",(IF(K24<=N24,"A TIEMPO","FUERA DE TIEMPO")))) -> A TIEMPO | P24: =IF(K24="","",NETWORKDAYS(C24+1,K24,DiasNOLaborables)) -> 8 | T24: 20 | AB24: AREA OPERATIVA No. 8 | AG24: 43898
A25: 14 | B25: 20209050088492 | C25: 44105 | D25: CIUDADANO | E25: FEMENINO | F25: MODULO CONTACTENOS | G25: SOLICITUD DE INFORMACIÓN Y DOCUMENTOS | H25: SOLICITUD DE INFORMACIÓN HIDROMETEOROLÓGICA | I25: NO | J25: GRUPO DE ATENCIÓN AL CIUDADANO | K25: 44118 | L25: CORREO ELECTRÓNICO | N25: =IFERROR(WORKDAY(C25,T25,DiasNOLaborables),"") -> 44134 | O25: =+IF(C25="","",IF(K25="","SIN RESPUESTA",(IF(K25<=N25,"A TIEMPO","FUERA DE TIEMPO")))) -> A TIEMPO | P25: =IF(K25="","",NETWORKDAYS(C25+1,K25,DiasNOLaborables)) -> 8 | T25: 20 | AB25: AREA OPERATIVA No. 9 | AG25: 43904
A26: 15 | B26: 20209050088512 | C26: 44105 | D26: CIUDADANO | E26: FEMENINO | F26: MODULO CONTACTENOS | G26: SOLICITUD DE INFORMACIÓN Y DOCUMENTOS | H26: SOLICITUD DE INFORMACIÓN HIDROMETEOROLÓGICA | I26: NO | J26: GRUPO DE ATENCIÓN AL CIUDADANO | K26: 44118 | L26: CORREO ELECTRÓNICO | N26: =IFERROR(WORKDAY(C26,T26,DiasNOLaborables),"") -> 44134 | O26: =+IF(C26="","",IF(K26="","SIN RESPUESTA",(IF(K26<=N26,"A TIEMPO","FUERA DE TIEMPO")))) -> A TIEMPO | P26: =IF(K26="","",NETWORKDAYS(C26+1,K26,DiasNOLaborables)) -> 8 | T26: 20 | AB26: AREA OPERATIVA No. 10 | AG26: 43905
A27: 16 | B27: 20209050088502 | C27: 44105 | D27: CIUDADANO | E27: FEMENINO | F27: MODULO CONTACTENOS | G27: SOLICITUD DE INFORMACIÓN Y DOCUMENTOS | H27: SOLICITUD DE INFORMACIÓN HIDROMETEOROLÓGICA | I27: NO | J27: GRUPO DE ATENCIÓN AL CIUDADANO | K27: 44118 | L27: CORREO ELECTRÓNICO | N27: =IFERROR(WORKDAY(C27,T27,DiasNOLaborables),"") -> 44134 | O27: =+IF(C27="","",IF(K27="","SIN RESPUESTA",(IF(K27<=N27,"A TIEMPO","FUERA DE TIEMPO")))) -> A TIEMPO | P27: =IF(K27="","",NETWORKDAYS(C27+1,K27,DiasNOLaborables)) -> 8 | T27: 20 | AB27: AREA OPERATIVA No. 11 | AG27: 43911
A28: 17 | B28: 20209050088522 | C28: 44105 | D28: CIUDADANO | E28: FEMENINO | F28: MODULO CONTACTENOS | G28: SOLICITUD DE INFORMACIÓN Y DOCUMENTOS | H28: SOLICITUD DE INFORMACIÓN HIDROMETEOROLÓGICA | I28: NO | J28: GRUPO DE ATENCIÓN AL CIUDADANO | K28: 44118 | L28: CORREO ELECTRÓNICO | N28: =IFERROR(WORKDAY(C28,T28,DiasNOLaborables),"") -> 44134 | O28: =+IF(C28="","",IF(K28="","SIN RESPUESTA",(IF(K28<=N28,"A TIEMPO","FUERA DE TIEMPO")))) -> A TIEMPO | P28: =IF(K28="","",NETWORKDAYS(C28+1,K28,DiasNOLaborables)) -> 8 | T28: 20 | AB28: DIRECCIÓN GENERAL | AG28: 43912
A29: 18 | B29: 20209050088532 | C29: 44105 | D29: CIUDADANO | E29: FEMENINO | F29: MODULO CONTACTENOS | G29: SOLICITUD DE INFORMACIÓN Y DOCUMENTOS | H29: SOLICITUD DE INFORMACIÓN HIDROMETEOROLÓGICA | I29: NO | J29: GRUPO DE ATENCIÓN AL CIUDADANO | K29: 44118 | L29: CORREO ELECTRÓNICO | N29: =IFERROR(WORKDAY(C29,T29,DiasNOLaborables),"") -> 44134 | O29: =+IF(C29="","",IF(K29="","SIN RESPUESTA",(IF(K29<=N29,"A TIEMPO","FUERA DE TIEMPO")))) -> A TIEMPO | P29: =IF(K29="","",NETWORKDAYS(C29+1,K29,DiasNOLaborables)) -> 8 | T29: 20 | AB29: GRUPO DE ADMINISTRACIÓN Y DESARROLLO DEL TALENTO HUMANO | AG29: 43913
A30: 19 | B30: 20209050088652 | C30: 44105 | D30: CIUDADANO | E30: MASCULINO | F30: CORREO ELECTRÓNICO | G30: SOLICITUD DE INFORMACIÓN Y DOCUMENTOS | H30: SOLICITUD DE INFORMACIÓN HIDROMETEOROLÓGICA | I30: NO | J30: GRUPO DE ATENCIÓN AL CIUDADANO | K30: 44106 | L30: CORREO ELECTRÓNICO | N30: =IFERROR(WORKDAY(C30,T30,DiasNOLaborables),"") -> 44134 | O30: =+IF(C30="","",IF(K30="","SIN RESPUESTA",(IF(K30<=N30,"A TIEMPO","FUERA DE TIEMPO")))) -> A TIEMPO | P30: =IF(K30="","",NETWORKDAYS(C30+1,K30,DiasNOLaborables)) -> 1 | T30: 20 | AB30: GRUPO DE COMUNICACIONES | AG30: 43918
A31: 20 | B31: 20209050088122 | C31: 44105 | D31: FUNCIONARIO IDEAM | E31: MASCULINO | F31: CORREO ELECTRÓNICO | G31: SOLICITUD DE INFORMACIÓN Y DOCUMENTOS | H31: ADMINISTRATIVA | I31: SI | J31: GRUPO DE ADMINISTRACIÓN Y DESARROLLO DEL TALENTO HUMANO | K31: 44118 | L31: CORREO ELECTRÓNICO | N31: =IFERROR(WORKDAY(C31,T31,DiasNOLaborables),"") -> 44134 | O31: =+IF(C31="","",IF(K31="","SIN RESPUESTA",(IF(K31<=N31,"A TIEMPO","FUERA DE TIEMPO")))) -> A TIEMPO | P31: =IF(K31="","",NETWORKDAYS(C31+1,K31,DiasNOLaborables)) -> 8 | T31: 20 | AB31: GRUPO DE CONTABILIDAD | AG31: 43919
A32: 21 | B32: 20209050088132 | C32: 44105 | D32: EMPRESA PRIVADA | E32: MASCULINO | F32: CORREO ELECTRÓNICO | G32: CERTIFICACIONES DE TIEMPO, CLIMA Y EVENTOS HIDROLÓGICOS | H32: CERTIFICACIONES DE TIEMPO Y CLIMA | I32: SI | J32: SUBDIRECCIÓN DE METEOROLOGÍA | K32: 44106 | L32: CORREO ELECTRÓNICO | N32: =IFERROR(WORKDAY(C32,T32,DiasNOLaborables),"") -> 44155 | O32: =+IF(C32="","",IF(K32="","SIN RESPUESTA",(IF(K32<=N32,"A TIEMPO","FUERA DE TIEMPO")))) -> A TIEMPO | P32: =IF(K32="","",NETWORKDAYS(C32+1,K32,DiasNOLaborables)) -> 1 | T32: 35 | AB32: GRUPO DE CONTROL DISCIPLINARIO INTERNO | AG32: 43925
A33: 22 | B33: 20209050088142 | C33: 44105 | D33: EMPRESA PRIVADA | E33: PERSONA JURÍDICA | F33: CORREO ELECTRÓNICO | G33: SOLICITUD DE INFORMACIÓN Y DOCUMENTOS | H33: SOLICITUD DE INFORMACIÓN HIDROMETEOROLÓGICA | I33: SI | J33: SUBDIRECCIÓN DE ESTUDIOS AMBIENTALES | K33: 44110 | L33: CORREO ELECTRÓNICO | N33: =IFERROR(WORKDAY(C33,T33,DiasNOLaborables),"") -> 44134 | O33: =+IF(C33="","",IF(K33="","SIN RESPUESTA",(IF(K33<=N33,"A TIEMPO","FUERA DE TIEMPO")))) -> A TIEMPO | P33: =IF(K33="","",NETWORKDAYS(C33+1,K33,DiasNOLaborables)) -> 3 | T33: 20 | AB33: GRUPO DE GESTIÓN DOCUMENTAL Y CENTRO DE DOCUMENTACIÓN | AG33: 43926
A34: 23 | B34: 20209050088152 | C34: 44105 | D34: EMPRESA PRIVADA | E34: MASCULINO | F34: CORREO ELECTRÓNICO | G34: CERTIFICACIONES DE TIEMPO, CLIMA Y EVENTOS HIDROLÓGICOS | H34: CERTIFICACIONES DE TIEMPO Y CLIMA | I34: SI | J34: SUBDIRECCIÓN DE METEOROLOGÍA | K34: 44106 | L34: CORREO ELECTRÓNICO | N34: =IFERROR(WORKDAY(C34,T34,DiasNOLaborables),"") -> 44155 | O34: =+IF(C34="","",IF(K34="","SIN RESPUESTA",(IF(K34<=N34,"A TIEMPO","FUERA DE TIEMPO")))) -> A TIEMPO | P34: =IF(K34="","",NETWORKDAYS(C34+1,K34,DiasNOLaborables)) -> 1 | T34: 35 | AB34: GRUPO DE PRESUPUESTO | AG34: 43930
A35: 24 | B35: 20209050088162 | C35: 44105 | D35: EMPRESA PRIVADA | E35: FEMENINO | F35: CORREO ELECTRÓNICO | G35: SOLICITUD DE INFORMACIÓN Y DOCUMENTOS | H35: REGISTROS AMBIENTALES | I35: SI | J35: SUBDIRECCIÓN DE ESTUDIOS AMBIENTALES | K35: 44109 | L35: CORREO ELECTRÓNICO | N35: =IFERROR(WORKDAY(C35,T35,DiasNOLaborables),"") -> 44134 | O35: =+IF(C35="","",IF(K35="","SIN RESPUESTA",(IF(K35<=N35,"A TIEMPO","FUERA DE TIEMPO")))) -> A TIEMPO | P35: =IF(K35="","",NETWORKDAYS(C35+1,K35,DiasNOLaborables)) -> 2 | T35: 20 | AB35: GRUPO DE SERVICIO AL CIUDADANO | AG35: 43931
A36: 25 | B36: 20209050088172 | C36: 44105 | D36: FUNCIONARIO IDEAM | E36: FEMENINO | F36: CORREO ELECTRÓNICO | G36: SOLICITUD JUDICIAL | H36: ADMINISTRATIVA | I36: SI | J36: OFICINA ASESORA JURÍDICA | K36: 44111 | L36: CORREO ELECTRÓNICO | N36: =IFERROR(WORKDAY(C36,T36,DiasNOLaborables),"") -> 44112 | O36: =+IF(C36="","",IF(K36="","SIN RESPUESTA",(IF(K36<=N36,"A TIEMPO","FUERA DE TIEMPO")))) -> A TIEMPO | P36: =IF(K36="","",NETWORKDAYS(C36+1,K36,DiasNOLaborables)) -> 4 | Q36: =IF(NETWORKDAYS(N36+1,K36,DiasNOLaborables)<=0,"",NETWORKDAYS(N36+1,K36,DiasNOLaborables)) ->  | T36: 5 | AB36: GRUPO DE SERVICIOS ADMINISTRATIVOS | AG36: 43932
A37: 26 | B37: 20209050088222 | C37: 44105 | D37: ENTIDAD PÚBLICA | E37: FEMENINO | F37: CORREO ELECTRÓNICO | G37: SOLICITUD DE INFORMACIÓN Y DOCUMENTOS | H37: SOLICITUD DE INFORMACIÓN HIDROMETEOROLÓGICA | I37: SI | J37: SUBDIRECCIÓN DE HIDROLOGÍA | K37: 44110 | L37: CORREO ELECTRÓNICO | N37: =IFERROR(WORKDAY(C37,T37,DiasNOLaborables),"") -> 44134 | O37: =+IF(C37="","",IF(K37="","SIN RESPUESTA",(IF(K37<=N37,"A TIEMPO","FUERA DE TIEMPO")))) -> A TIEMPO | P37: =IF(K37="","",NETWORKDAYS(C37+1,K37,DiasNOLaborables)) -> 3 | T37: =IFERROR(VLOOKUP(G37,$AB$50:$AC$63,2),"") -> 20 | AB37: GRUPO DE TESORERÍA | AG37: 43933
A38: 27 | B38: 20209050088242 | C38: 44105 | D38: EMPRESA PRIVADA | E38: PERSONA JURÍDICA | F38: CORREO ELECTRÓNICO | G38: CERTIFICACIONES DE TIEMPO, CLIMA Y EVENTOS HIDROLÓGICOS | H38: CERTIFICACIONES DE TIEMPO Y CLIMA | I38: SI | J38: SUBDIRECCIÓN DE METEOROLOGÍA | K38: 44117 | L38: CORREO ELECTRÓNICO | N38: =IFERROR(WORKDAY(C38,T38,DiasNOLaborables),"") -> 44155 | O38: =+IF(C38="","",IF(K38="","SIN RESPUESTA",(IF(K38<=N38,"A TIEMPO","FUERA DE TIEMPO")))) -> A TIEMPO | P38: =IF(K38="","",NETWORKDAYS(C38+1,K38,DiasNOLaborables)) -> 7 | T38: 35 | AB38: OFICINA ASESORA DE PLANEACIÓN | AG38: 43939
A39: 28 | B39: 20209050088262 | C39: 44105 | D39: EMPRESA PRIVADA | E39: MASCULINO | F39: CORREO ELECTRÓNICO | G39: CERTIFICACIONES DE TIEMPO, CLIMA Y EVENTOS HIDROLÓGICOS | H39: CERTIFICACIONES DE TIEMPO Y CLIMA | I39: SI | J39: SUBDIRECCIÓN DE METEOROLOGÍA | K39: 44106 | L39: CORREO ELECTRÓNICO | N39: =IFERROR(WORKDAY(C39,T39,DiasNOLaborables),"") -> 44155 | O39: =+IF(C39="","",IF(K39="","SIN RESPUESTA",(IF(K39<=N39,"A TIEMPO","FUERA DE TIEMPO")))) -> A TIEMPO | P39: =IF(K39="","",NETWORKDAYS(C39+1,K39,DiasNOLaborables)) -> 1 | T39: 35 | AB39: OFICINA ASESORA JURÍDICA | AG39: 43940
A40: 29 | B40: 20209050088302 | C40: 44105 | D40: EMPRESA PRIVADA | E40: MASCULINO | F40: CORREO ELECTRÓNICO | G40: CERTIFICACIONES DE TIEMPO, CLIMA Y EVENTOS HIDROLÓGICOS | H40: CERTIFICACIONES DE TIEMPO Y CLIMA | I40: SI | J40: SUBDIRECCIÓN DE METEOROLOGÍA | K40: 44109 | L40: CORREO ELECTRÓNICO | N40: =IFERROR(WORKDAY(C40,T40,DiasNOLaborables),"") -> 44155 | O40: =+IF(C40="","",IF(K40="","SIN RESPUESTA",(IF(K40<=N40,"A TIEMPO","FUERA DE TIEMPO")))) -> A TIEMPO | P40: =IF(K40="","",NETWORKDAYS(C40+1,K40,DiasNOLaborables)) -> 2 | T40: 35 | AB40: OFICINA DE CONTROL INTERNO | AG40: 43946
A41: 30 | B41: 20209050088312 | C41: 44105 | D41: EMPRESA PRIVADA | E41: MASCULINO | F41: CORREO ELECTRÓNICO | G41: CERTIFICACIONES DE TIEMPO, CLIMA Y EVENTOS HIDROLÓGICOS | H41: CERTIFICACIONES DE TIEMPO Y CLIMA | I41: SI | J41: SUBDIRECCIÓN DE METEOROLOGÍA | K41: 44117 | L41: CORREO ELECTRÓNICO | N41: =IFERROR(WORKDAY(C41,T41,DiasNOLaborables),"") -> 44155 | O41: =+IF(C41="","",IF(K41="","SIN RESPUESTA",(IF(K41<=N41,"A TIEMPO","FUERA DE TIEMPO")))) -> A TIEMPO | P41: =IF(K41="","",NETWORKDAYS(C41+1,K41,DiasNOLaborables)) -> 7 | Q41: =IF(NETWORKDAYS(N41+1,K41,DiasNOLaborables)<=0,"",NETWORKDAYS(N41+1,K41,DiasNOLaborables)) ->  | T41: 35 | AB41: OFICINA DE INFORMÁTICA | AG41: 43947
A42: 31 | B42: 20209050088972 | C42: 44105 | D42: EMPRESA PRIVADA | E42: MASCULINO | F42: CORREO ELECTRÓNICO | G42: CERTIFICACIONES DE TIEMPO, CLIMA Y EVENTOS HIDROLÓGICOS | H42: CERTIFICACIONES DE TIEMPO Y CLIMA | I42: SI | J42: SUBDIRECCIÓN DE METEOROLOGÍA | K42: 44110 | L42: CORREO ELECTRÓNICO | N42: =IFERROR(WORKDAY(C42,T42,DiasNOLaborables),"") -> 44155 | O42: =+IF(C42="","",IF(K42="","SIN RESPUESTA",(IF(K42<=N42,"A TIEMPO","FUERA DE TIEMPO")))) -> A TIEMPO | P42: =IF(K42="","",NETWORKDAYS(C42+1,K42,DiasNOLaborables)) -> 3 | T42: 35 | AB42: OFICINA DEL SERVICIO DE PRONÓSTICOS Y ALERTAS | AG42: 43952
A43: 32 | B43: 20209050088992 | C43: 44105 | D43: EMPRESA PRIVADA | E43: MASCULINO | F43: CORREO ELECTRÓNICO | G43: CERTIFICACIONES DE TIEMPO, CLIMA Y EVENTOS HIDROLÓGICOS | H43: CERTIFICACIONES DE TIEMPO Y CLIMA | I43: SI | J43: SUBDIRECCIÓN DE METEOROLOGÍA | K43: 44117 | L43: CORREO ELECTRÓNICO | N43: =IFERROR(WORKDAY(C43,T43,DiasNOLaborables),"") -> 44155 | O43: =+IF(C43="","",IF(K43="","SIN RESPUESTA",(IF(K43<=N43,"A TIEMPO","FUERA DE TIEMPO")))) -> A TIEMPO | P43: =IF(K43="","",NETWORKDAYS(C43+1,K43,DiasNOLaborables)) -> 7 | T43: 35 | AB43: SECRETARÍA GENERAL | AG43: 43953
A44: 33 | B44: 20209910060562 | C44: 44105 | D44: ENTIDAD PÚBLICA | E44: PERSONA JURÍDICA | F44: CORREO CERTIFICADO | G44: PETICIÓN | H44: ACREDITACIÓN DE LABORATORIOS | I44: SI | J44: SUBDIRECCIÓN DE ESTUDIOS AMBIENTALES | K44: 44112 | L44: CORREO ELECTRÓNICO | N44: =IFERROR(WORKDAY(C44,T44,DiasNOLaborables),"") -> 44148 | O44: =+IF(C44="","",IF(K44="","SIN RESPUESTA",(IF(K44<=N44,"A TIEMPO","FUERA DE TIEMPO")))) -> A TIEMPO | P44: =IF(K44="","",NETWORKDAYS(C44+1,K44,DiasNOLaborables)) -> 5 | T44: 30 | AB44: SUBDIRECCIÓN DE ECOSISTEMAS E INFORMACIÓN AMBIENTAL | AG44: 43954
A45: 34 | B45: 20209050088322 | C45: 44105 | D45: EMPRESA PRIVADA | E45: MASCULINO | F45: CORREO ELECTRÓNICO | G45: CERTIFICACIONES DE TIEMPO, CLIMA Y EVENTOS HIDROLÓGICOS | H45: CERTIFICACIONES DE TIEMPO Y CLIMA | I45: SI | J45: SUBDIRECCIÓN DE METEOROLOGÍA | K45: 44117 | L45: CORREO ELECTRÓNICO | N45: =IFERROR(WORKDAY(C45,T45,DiasNOLaborables),"") -> 44155 | O45: =+IF(C45="","",IF(K45="","SIN RESPUESTA",(IF(K45<=N45,"A TIEMPO","FUERA DE TIEMPO")))) -> A TIEMPO | P45: =IF(K45="","",NETWORKDAYS(C45+1,K45,DiasNOLaborables)) -> 7 | T45: 35 | AB45: SUBDIRECCIÓN DE ESTUDIOS AMBIENTALES | AG45: 43960
A46: 35 | B46: 20209050088332 | C46: 44105 | D46: EMPRESA PRIVADA | E46: MASCULINO | F46: CORREO ELECTRÓNICO | G46: CERTIFICACIONES DE TIEMPO, CLIMA Y EVENTOS HIDROLÓGICOS | H46: CERTIFICACIONES DE TIEMPO Y CLIMA | I46: SI | J46: SUBDIRECCIÓN DE METEOROLOGÍA | K46: 44117 | L46: CORREO ELECTRÓNICO | N46: =IFERROR(WORKDAY(C46,T46,DiasNOLaborables),"") -> 44155 | O46: =+IF(C46="","",IF(K46="","SIN RESPUESTA",(IF(K46<=N46,"A TIEMPO","FUERA DE TIEMPO")))) -> A TIEMPO | P46: =IF(K46="","",NETWORKDAYS(C46+1,K46,DiasNOLaborables)) -> 7 | T46: 35 | AB46: SUBDIRECCIÓN DE HIDROLOGÍA | AG46: 43961
A47: 36 | B47: 20209050088342 | C47: 44105 | D47: EMPRESA PRIVADA | E47: MASCULINO | F47: CORREO ELECTRÓNICO | G47: CERTIFICACIONES DE TIEMPO, CLIMA Y EVENTOS HIDROLÓGICOS | H47: CERTIFICACIONES DE TIEMPO Y CLIMA | I47: SI | J47: SUBDIRECCIÓN DE METEOROLOGÍA | K47: 44117 | L47: CORREO ELECTRÓNICO | N47: =IFERROR(WORKDAY(C47,T47,DiasNOLaborables),"") -> 44155 | O47: =+IF(C47="","",IF(K47="","SIN RESPUESTA",(IF(K47<=N47,"A TIEMPO","FUERA DE TIEMPO")))) -> A TIEMPO | P47: =IF(K47="","",NETWORKDAYS(C47+1,K47,DiasNOLaborables)) -> 7 | T47: 35 | AB47: SUBDIRECCIÓN DE METEOROLOGÍA | AG47: 43967
A48: 37 | B48: 20209050088352 | C48: 44105 | D48: EMPRESA PRIVADA | E48: MASCULINO | F48: CORREO ELECTRÓNICO | G48: CERTIFICACIONES DE TIEMPO, CLIMA Y EVENTOS HIDROLÓGICOS | H48: CERTIFICACIONES DE TIEMPO Y CLIMA | I48: SI | J48: SUBDIRECCIÓN DE METEOROLOGÍA | K48: 44117 | L48: CORREO ELECTRÓNICO | N48: =IFERROR(WORKDAY(C48,T48,DiasNOLaborables),"") -> 44155 | O48: =+IF(C48="","",IF(K48="","SIN RESPUESTA",(IF(K48<=N48,"A TIEMPO","FUERA DE TIEMPO")))) -> A TIEMPO | P48: =IF(K48="","",NETWORKDAYS(C48+1,K48,DiasNOLaborables)) -> 7 | T48: 35 | AG48: 43968
A49: 38 | B49: 20209050088282 | C49: 44105 | D49: FUNCIONARIO IDEAM | E49: MASCULINO | F49: CORREO ELECTRÓNICO | G49: CERTIFICACIONES DE TIEMPO, CLIMA Y EVENTOS HIDROLÓGICOS | H49: CERTIFICACIONES DE TIEMPO Y CLIMA | I49: SI | J49: SUBDIRECCIÓN DE METEOROLOGÍA | K49: 44118 | L49: CORREO ELECTRÓNICO | N49: =IFERROR(WORKDAY(C49,T49,DiasNOLaborables),"") -> 44155 | O49: =+IF(C49="","",IF(K49="","SIN RESPUESTA",(IF(K49<=N49,"A TIEMPO","FUERA DE TIEMPO")))) -> A TIEMPO | P49: =IF(K49="","",NETWORKDAYS(C49+1,K49,DiasNOLaborables)) -> 8 | T49: 35 | AB49: TIPO DE REQUERIMIENTO | AC49: Término | AG49: 43974
A50: 39 | B50: 20209050088292 | C50: 44105 | D50: CIUDADANO | E50: FEMENINO | F50: CORREO ELECTRÓNICO | G50: SOLICITUD DE INFORMACIÓN Y DOCUMENTOS | H50: SOLICITUD DE INFORMACIÓN HIDROMETEOROLÓGICA | I50: SI | J50: SUBDIRECCIÓN DE ESTUDIOS AMBIENTALES | K50: 44112 | L50: CORREO ELECTRÓNICO | N50: =IFERROR(WORKDAY(C50,T50,DiasNOLaborables),"") -> 44134 | O50: =+IF(C50="","",IF(K50="","SIN RESPUESTA",(IF(K50<=N50,"A TIEMPO","FUERA DE TIEMPO")))) -> A TIEMPO | P50: =IF(K50="","",NETWORKDAYS(C50+1,K50,DiasNOLaborables)) -> 5 | T50: 20 | AB50: AGRADECIMIENTO/FELICITACION | AC50: 15 | AG50: 43975
A51: 40 | B51: 20209050088642 | C51: 44105 | D51: CIUDADANO | E51: MASCULINO | F51: CORREO ELECTRÓNICO | G51: SOLICITUD DE INFORMACIÓN Y DOCUMENTOS | H51: SOLICITUD DE INFORMACIÓN HIDROMETEOROLÓGICA | I51: NO | J51: GRUPO DE ATENCIÓN AL CIUDADANO | K51: 44110 | L51: CORREO ELECTRÓNICO | N51: =IFERROR(WORKDAY(C51,T51,DiasNOLaborables),"") -> 44134 | O51: =+IF(C51="","",IF(K51="","SIN RESPUESTA",(IF(K51<=N51,"A TIEMPO","FUERA DE TIEMPO")))) -> A TIEMPO | P51: =IF(K51="","",NETWORKDAYS(C51+1,K51,DiasNOLaborables)) -> 3 | T51: 20 | AB51: CERTIFICACIONES DE TIEMPO, CLIMA Y EVENTOS HIDROLÓGICOS | AC51: 35 | AG51: 43976
A52: 41 | B52: 20209050088682 | C52: 44105 | D52: CIUDADANO | E52: MASCULINO | F52: CORREO ELECTRÓNICO | G52: SOLICITUD DE INFORMACIÓN Y DOCUMENTOS | H52: SOLICITUD DE INFORMACIÓN HIDROMETEOROLÓGICA | I52: NO | J52: GRUPO DE ATENCIÓN AL CIUDADANO | K52: 44110 | L52: CORREO ELECTRÓNICO | N52: =IFERROR(WORKDAY(C52,T52,DiasNOLaborables),"") -> 44134 | O52: =+IF(C52="","",IF(K52="","SIN RESPUESTA",(IF(K52<=N52,"A TIEMPO","FUERA DE TIEMPO")))) -> A TIEMPO | P52: =IF(K52="","",NETWORKDAYS(C52+1,K52,DiasNOLaborables)) -> 3 | T52: 20 | AB52: CONSULTA | AC52: 35 | AG52: 43981
A53: 42 | B53: 20209050088692 | C53: 44105 | D53: CIUDADANO | E53: FEMENINO | F53: CORREO ELECTRÓNICO | G53: SOLICITUD DE INFORMACIÓN Y DOCUMENTOS | H53: SOLICITUD DE INFORMACIÓN HIDROMETEOROLÓGICA | I53: NO | J53: GRUPO DE ATENCIÓN AL CIUDADANO | K53: 44110 | L53: CORREO ELECTRÓNICO | N53: =IFERROR(WORKDAY(C53,T53,DiasNOLaborables),"") -> 44134 | O53: =+IF(C53="","",IF(K53="","SIN RESPUESTA",(IF(K53<=N53,"A TIEMPO","FUERA DE TIEMPO")))) -> A TIEMPO | P53: =IF(K53="","",NETWORKDAYS(C53+1,K53,DiasNOLaborables)) -> 3 | T53: 20 | AB53: DENUNCIA | AC53: 15 | AG53: 43982
A54: 43 | B54: 20209050089132 | C54: 44105 | D54: ACADEMIA | E54: MASCULINO | F54: CORREO ELECTRÓNICO | G54: SOLICITUD DE INFORMACIÓN Y DOCUMENTOS | H54: SOLICITUD DE INFORMACIÓN HIDROMETEOROLÓGICA | I54: NO | J54: GRUPO DE ATENCIÓN AL CIUDADANO | K54: 44110 | L54: CORREO ELECTRÓNICO | N54: =IFERROR(WORKDAY(C54,T54,DiasNOLaborables),"") -> 44134 | O54: =+IF(C54="","",IF(K54="","SIN RESPUESTA",(IF(K54<=N54,"A TIEMPO","FUERA DE TIEMPO")))) -> A TIEMPO | P54: =IF(K54="","",NETWORKDAYS(C54+1,K54,DiasNOLaborables)) -> 3 | T54: 20 | AB54: PETICIÓN | AC54: 30 | AG54: 43988
A55: 44 | B55: 20209050088112 | C55: 44105 | D55: ACADEMIA | E55: MASCULINO | F55: MODULO CONTACTENOS | G55: SOLICITUD DE INFORMACIÓN Y DOCUMENTOS | H55: SOLICITUD DE INFORMACIÓN HIDROMETEOROLÓGICA | I55: NO | J55: GRUPO DE ATENCIÓN AL CIUDADANO | K55: 44120 | L55: CORREO ELECTRÓNICO | N55: =IFERROR(WORKDAY(C55,T55,DiasNOLaborables),"") -> 44134 | O55: =+IF(C55="","",IF(K55="","SIN RESPUESTA",(IF(K55<=N55,"A TIEMPO","FUERA DE TIEMPO")))) -> A TIEMPO | P55: =IF(K55="","",NETWORKDAYS(C55+1,K55,DiasNOLaborables)) -> 10 | T55: 20 | AB55: PETICIÓN ENTRE AUTORIDADES | AC55: 10 | AG55: 43989
A56: 45 | B56: 20209050088202 | C56: 44105 | D56: CIUDADANO | E56: MASCULINO | F56: MODULO CONTACTENOS | G56: SOLICITUD DE INFORMACIÓN Y DOCUMENTOS | H56: SOLICITUD DE INFORMACIÓN HIDROMETEOROLÓGICA | I56: NO | J56: GRUPO DE ATENCIÓN AL CIUDADANO | K56: 44120 | L56: CORREO ELECTRÓNICO | N56: =IFERROR(WORKDAY(C56,T56,DiasNOLaborables),"") -> 44134 | O56: =+IF(C56="","",IF(K56="","SIN RESPUESTA",(IF(K56<=N56,"A TIEMPO","FUERA DE TIEMPO")))) -> A TIEMPO | P56: =IF(K56="","",NETWORKDAYS(C56+1,K56,DiasNOLaborables)) -> 10 | T56: 20 | AB56: PETICION VERBAL | AC56: 15 | AG56: 43995
A57: 46 | B57: 20209050088212 | C57: 44105 | D57: CIUDADANO | E57: MASCULINO | F57: MODULO CONTACTENOS | G57: SOLICITUD DE INFORMACIÓN Y DOCUMENTOS | H57: SOLICITUD DE INFORMACIÓN HIDROMETEOROLÓGICA | I57: NO | J57: GRUPO DE ATENCIÓN AL CIUDADANO | K57: 44120 | L57: CORREO ELECTRÓNICO | N57: =IFERROR(WORKDAY(C57,T57,DiasNOLaborables),"") -> 44134 | O57: =+IF(C57="","",IF(K57="","SIN RESPUESTA",(IF(K57<=N57,"A TIEMPO","FUERA DE TIEMPO")))) -> A TIEMPO | P57: =IF(K57="","",NETWORKDAYS(C57+1,K57,DiasNOLaborables)) -> 10 | T57: 20 | AB57: QUEJA | AC57: 15 | AG57: 43996
A58: 47 | B58: 20209050088712 | C58: 44106 | D58: CIUDADANO | E58: MASCULINO | F58: MODULO CONTACTENOS | G58: SOLICITUD DE INFORMACIÓN Y DOCUMENTOS | H58: SOLICITUD DE INFORMACIÓN HIDROMETEOROLÓGICA | I58: NO | J58: GRUPO DE ATENCIÓN AL CIUDADANO | K58: 44120 | L58: CORREO ELECTRÓNICO | N58: =IFERROR(WORKDAY(C58,T58,DiasNOLaborables),"") -> 44137 | O58: =+IF(C58="","",IF(K58="","SIN RESPUESTA",(IF(K58<=N58,"A TIEMPO","FUERA DE TIEMPO")))) -> A TIEMPO | P58: =IF(K58="","",NETWORKDAYS(C58+1,K58,DiasNOLaborables)) -> 9 | T58: 20 | AB58: RECLAMO | AC58: 15 | AG58: 43997
A59: 48 | B59: 20209050088722 | C59: 44106 | D59: CIUDADANO | E59: MASCULINO | F59: MODULO CONTACTENOS | G59: SOLICITUD DE INFORMACIÓN Y DOCUMENTOS | H59: SOLICITUD DE INFORMACIÓN HIDROMETEOROLÓGICA | I59: NO | J59: GRUPO DE ATENCIÓN AL CIUDADANO | K59: 44120 | L59: CORREO ELECTRÓNICO | N59: =IFERROR(WORKDAY(C59,T59,DiasNOLaborables),"") -> 44137 | O59: =+IF(C59="","",IF(K59="","SIN RESPUESTA",(IF(K59<=N59,"A TIEMPO","FUERA DE TIEMPO")))) -> A TIEMPO | P59: =IF(K59="","",NETWORKDAYS(C59+1,K59,DiasNOLaborables)) -> 9 | T59: 20 | AB59: REMISIÓN POR COMPETENCIA | AC59: 5 | AG59: 44002
A60: 49 | B60: 20209050088772 | C60: 44106 | D60: CIUDADANO | E60: MASCULINO | F60: MODULO CONTACTENOS | G60: SOLICITUD DE INFORMACIÓN Y DOCUMENTOS | H60: SOLICITUD DE INFORMACIÓN HIDROMETEOROLÓGICA | I60: NO | J60: GRUPO DE ATENCIÓN AL CIUDADANO | K60: 44120 | L60: CORREO ELECTRÓNICO | N60: =IFERROR(WORKDAY(C60,T60,DiasNOLaborables),"") -> 44137 | O60: =+IF(C60="","",IF(K60="","SIN RESPUESTA",(IF(K60<=N60,"A TIEMPO","FUERA DE TIEMPO")))) -> A TIEMPO | P60: =IF(K60="","",NETWORKDAYS(C60+1,K60,DiasNOLaborables)) -> 9 | T60: 20 | AB60: SOLICITUD CONGRESITAS | AC60: 5 | AG60: 44003
A61: 50 | B61: 20209050088792 | C61: 44106 | D61: EMPRESA PRIVADA | E61: MASCULINO | F61: MODULO CONTACTENOS | G61: SOLICITUD DE INFORMACIÓN Y DOCUMENTOS | H61: SOLICITUD DE INFORMACIÓN HIDROMETEOROLÓGICA | I61: NO | J61: GRUPO DE ATENCIÓN AL CIUDADANO | K61: 44120 | L61: CORREO ELECTRÓNICO | N61: =IFERROR(WORKDAY(C61,T61,DiasNOLaborables),"") -> 44137 | O61: =+IF(C61="","",IF(K61="","SIN RESPUESTA",(IF(K61<=N61,"A TIEMPO","FUERA DE TIEMPO")))) -> A TIEMPO | P61: =IF(K61="","",NETWORKDAYS(C61+1,K61,DiasNOLaborables)) -> 9 | T61: 20 | AB61: SOLICITUD DE INFORMACIÓN Y DOCUMENTOS | AC61: 20 | AG61: 44004
A62: 51 | B62: 20209050088842 | C62: 44106 | D62: EMPRESA PRIVADA | E62: MASCULINO | F62: MODULO CONTACTENOS | G62: SOLICITUD DE INFORMACIÓN Y DOCUMENTOS | H62: SOLICITUD DE INFORMACIÓN HIDROMETEOROLÓGICA | I62: NO | J62: GRUPO DE ATENCIÓN AL CIUDADANO | K62: 44120 | L62: CORREO ELECTRÓNICO | N62: =IFERROR(WORKDAY(C62,T62,DiasNOLaborables),"") -> 44137 | O62: =+IF(C62="","",IF(K62="","SIN RESPUESTA",(IF(K62<=N62,"A TIEMPO","FUERA DE TIEMPO")))) -> A TIEMPO | P62: =IF(K62="","",NETWORKDAYS(C62+1,K62,DiasNOLaborables)) -> 9 | T62: 20 | AB62: SOLICITUD JUDICIAL | AC62: 5 | AG62: 44009
A63: 52 | B63: 20209050088872 | C63: 44106 | D63: EMPRESA PRIVADA | E63: MASCULINO | F63: MODULO CONTACTENOS | G63: SOLICITUD DE INFORMACIÓN Y DOCUMENTOS | H63: SOLICITUD DE INFORMACIÓN HIDROMETEOROLÓGICA | I63: NO | J63: GRUPO DE ATENCIÓN AL CIUDADANO | K63: 44120 | L63: CORREO ELECTRÓNICO | N63: =IFERROR(WORKDAY(C63,T63,DiasNOLaborables),"") -> 44137 | O63: =+IF(C63="","",IF(K63="","SIN RESPUESTA",(IF(K63<=N63,"A TIEMPO","FUERA DE TIEMPO")))) -> A TIEMPO | P63: =IF(K63="","",NETWORKDAYS(C63+1,K63,DiasNOLaborables)) -> 9 | T63: 20 | AB63: SUGERENCIA | AC63: 15 | AG63: 44010
A64: 53 | B64: 20209050088912 | C64: 44106 | D64: CIUDADANO | E64: MASCULINO | F64: MODULO CONTACTENOS | G64: SOLICITUD DE INFORMACIÓN Y DOCUMENTOS | H64: SOLICITUD DE INFORMACIÓN HIDROMETEOROLÓGICA | I64: NO | J64: GRUPO DE ATENCIÓN AL CIUDADANO | K64: 44120 | L64: CORREO ELECTRÓNICO | N64: =IFERROR(WORKDAY(C64,T64,DiasNOLaborables),"") -> 44137 | O64: =+IF(C64="","",IF(K64="","SIN RESPUESTA",(IF(K64<=N64,"A TIEMPO","FUERA DE TIEMPO")))) -> A TIEMPO | P64: =IF(K64="","",NETWORKDAYS(C64+1,K64,DiasNOLaborables)) -> 9 | T64: 20 | AG64: 44011
A65: 54 | B65: 20209050088922 | C65: 44106 | D65: ACADEMIA | E65: MASCULINO | F65: MODULO CONTACTENOS | G65: SOLICITUD DE INFORMACIÓN Y DOCUMENTOS | H65: SOLICITUD DE INFORMACIÓN HIDROMETEOROLÓGICA | I65: NO | J65: GRUPO DE ATENCIÓN AL CIUDADANO | K65: 44120 | L65: CORREO ELECTRÓNICO | N65: =IFERROR(WORKDAY(C65,T65,DiasNOLaborables),"") -> 44137 | O65: =+IF(C65="","",IF(K65="","SIN RESPUESTA",(IF(K65<=N65,"A TIEMPO","FUERA DE TIEMPO")))) -> A TIEMPO | P65: =IF(K65="","",NETWORKDAYS(C65+1,K65,DiasNOLaborables)) -> 9 | T65: 20 | AB65: PRODUCTO O SERVICIO | AG65: 44016
A66: 55 | B66: 20209050088942 | C66: 44106 | D66: CIUDADANO | E66: MASCULINO | F66: MODULO CONTACTENOS | G66: SOLICITUD DE INFORMACIÓN Y DOCUMENTOS | H66: SOLICITUD DE INFORMACIÓN HIDROMETEOROLÓGICA | I66: NO | J66: GRUPO DE ATENCIÓN AL CIUDADANO | K66: 44120 | L66: CORREO ELECTRÓNICO | N66: =IFERROR(WORKDAY(C66,T66,DiasNOLaborables),"") -> 44137 | O66: =+IF(C66="","",IF(K66="","SIN RESPUESTA",(IF(K66<=N66,"A TIEMPO","FUERA DE TIEMPO")))) -> A TIEMPO | P66: =IF(K66="","",NETWORKDAYS(C66+1,K66,DiasNOLaborables)) -> 9 | T66: 20 | AB66: ACREDITACIÓN DE LABORATORIOS | AG66: 44017
A67: 56 | B67: 20209050088952 | C67: 44106 | D67: CIUDADANO | E67: MASCULINO | F67: MODULO CONTACTENOS | G67: SOLICITUD DE INFORMACIÓN Y DOCUMENTOS | H67: SOLICITUD DE INFORMACIÓN HIDROMETEOROLÓGICA | I67: NO | J67: GRUPO DE ATENCIÓN AL CIUDADANO | K67: 44120 | L67: CORREO ELECTRÓNICO | N67: =IFERROR(WORKDAY(C67,T67,DiasNOLaborables),"") -> 44137 | O67: =+IF(C67="","",IF(K67="","SIN RESPUESTA",(IF(K67<=N67,"A TIEMPO","FUERA DE TIEMPO")))) -> A TIEMPO | P67: =IF(K67="","",NETWORKDAYS(C67+1,K67,DiasNOLaborables)) -> 9 | T67: 20 | AB67: ADMINISTRATIVA | AG67: 44023
A68: 57 | B68: 20209050088962 | C68: 44106 | D68: EMPRESA PRIVADA | E68: FEMENINO | F68: MODULO CONTACTENOS | G68: SOLICITUD DE INFORMACIÓN Y DOCUMENTOS | H68: SOLICITUD DE INFORMACIÓN HIDROMETEOROLÓGICA | I68: NO | J68: GRUPO DE ATENCIÓN AL CIUDADANO | K68: 44120 | L68: CORREO ELECTRÓNICO | N68: =IFERROR(WORKDAY(C68,T68,DiasNOLaborables),"") -> 44137 | O68: =+IF(C68="","",IF(K68="","SIN RESPUESTA",(IF(K68<=N68,"A TIEMPO","FUERA DE TIEMPO")))) -> A TIEMPO | P68: =IF(K68="","",NETWORKDAYS(C68+1,K68,DiasNOLaborables)) -> 9 | T68: 20 | AB68: AGUAS SUBTERRANEAS | AG68: 44024
A69: 58 | B69: 20209050088982 | C69: 44106 | D69: EMPRESA PRIVADA | E69: FEMENINO | F69: MODULO CONTACTENOS | G69: SOLICITUD DE INFORMACIÓN Y DOCUMENTOS | H69: SOLICITUD DE INFORMACIÓN HIDROMETEOROLÓGICA | I69: NO | J69: GRUPO DE ATENCIÓN AL CIUDADANO | K69: 44120 | L69: CORREO ELECTRÓNICO | N69: =IFERROR(WORKDAY(C69,T69,DiasNOLaborables),"") -> 44137 | O69: =+IF(C69="","",IF(K69="","SIN RESPUESTA",(IF(K69<=N69,"A TIEMPO","FUERA DE TIEMPO")))) -> A TIEMPO | P69: =IF(K69="","",NETWORKDAYS(C69+1,K69,DiasNOLaborables)) -> 9 | T69: 20 | AB69: ASESORÍAS Y CHARLAS | AG69: 44030
A70: 59 | B70: 20209050089012 | C70: 44106 | D70: CIUDADANO | E70: FEMENINO | F70: MODULO CONTACTENOS | G70: SOLICITUD DE INFORMACIÓN Y DOCUMENTOS | H70: SOLICITUD DE INFORMACIÓN HIDROMETEOROLÓGICA | I70: NO | J70: GRUPO DE ATENCIÓN AL CIUDADANO | K70: 44120 | L70: CORREO ELECTRÓNICO | N70: =IFERROR(WORKDAY(C70,T70,DiasNOLaborables),"") -> 44137 | O70: =+IF(C70="","",IF(K70="","SIN RESPUESTA",(IF(K70<=N70,"A TIEMPO","FUERA DE TIEMPO")))) -> A TIEMPO | P70: =IF(K70="","",NETWORKDAYS(C70+1,K70,DiasNOLaborables)) -> 9 | T70: 20 | AB70: BOSQUES | AG70: 44031
A71: 60 | B71: 20209050089172 | C71: 44106 | D71: CIUDADANO | E71: MASCULINO | F71: CORREO ELECTRÓNICO | G71: SOLICITUD DE INFORMACIÓN Y DOCUMENTOS | H71: SOLICITUD DE INFORMACIÓN HIDROMETEOROLÓGICA | I71: NO | J71: GRUPO DE ATENCIÓN AL CIUDADANO | K71: 44110 | L71: CORREO ELECTRÓNICO | N71: =IFERROR(WORKDAY(C71,T71,DiasNOLaborables),"") -> 44137 | O71: =+IF(C71="","",IF(K71="","SIN RESPUESTA",(IF(K71<=N71,"A TIEMPO","FUERA DE TIEMPO")))) -> A TIEMPO | P71: =IF(K71="","",NETWORKDAYS(C71+1,K71,DiasNOLaborables)) -> 2 | T71: 20 | AB71: CAMBIO CLIMÁTICO | AG71: 44032
A72: 61 | B72: 20209050089182 | C72: 44106 | D72: CIUDADANO | E72: MASCULINO | F72: CORREO ELECTRÓNICO | G72: SOLICITUD DE INFORMACIÓN Y DOCUMENTOS | H72: SOLICITUD DE INFORMACIÓN HIDROMETEOROLÓGICA | I72: NO | J72: GRUPO DE ATENCIÓN AL CIUDADANO | K72: 44110 | L72: CORREO ELECTRÓNICO | N72: =IFERROR(WORKDAY(C72,T72,DiasNOLaborables),"") -> 44137 | O72: =+IF(C72="","",IF(K72="","SIN RESPUESTA",(IF(K72<=N72,"A TIEMPO","FUERA DE TIEMPO")))) -> A TIEMPO | P72: =IF(K72="","",NETWORKDAYS(C72+1,K72,DiasNOLaborables)) -> 2 | T72: 20 | AB72: CERTIFICACIONES DE TIEMPO Y CLIMA | AG72: 44037
A73: 62 | B73: 20209050089222 | C73: 44106 | D73: ACADEMIA | E73: FEMENINO | F73: CORREO ELECTRÓNICO | G73: SOLICITUD DE INFORMACIÓN Y DOCUMENTOS | H73: SOLICITUD DE INFORMACIÓN HIDROMETEOROLÓGICA | I73: NO | J73: GRUPO DE ATENCIÓN AL CIUDADANO | K73: 44110 | L73: CORREO ELECTRÓNICO | N73: =IFERROR(WORKDAY(C73,T73,DiasNOLaborables),"") -> 44137 | O73: =+IF(C73="","",IF(K73="","SIN RESPUESTA",(IF(K73<=N73,"A TIEMPO","FUERA DE TIEMPO")))) -> A TIEMPO | P73: =IF(K73="","",NETWORKDAYS(C73+1,K73,DiasNOLaborables)) -> 2 | T73: 20 | AB73: CERTIFICACIONES HIDROLOGICAS | AG73: 44038
A74: 63 | B74: 20209050089232 | C74: 44106 | D74: CIUDADANO | E74: FEMENINO | F74: CORREO ELECTRÓNICO | G74: SOLICITUD DE INFORMACIÓN Y DOCUMENTOS | H74: SOLICITUD DE INFORMACIÓN HIDROMETEOROLÓGICA | I74: NO | J74: GRUPO DE ATENCIÓN AL CIUDADANO | K74: 44111 | L74: CORREO ELECTRÓNICO | N74: =IFERROR(WORKDAY(C74,T74,DiasNOLaborables),"") -> 44137 | O74: =+IF(C74="","",IF(K74="","SIN RESPUESTA",(IF(K74<=N74,"A TIEMPO","FUERA DE TIEMPO")))) -> A TIEMPO | P74: =IF(K74="","",NETWORKDAYS(C74+1,K74,DiasNOLaborables)) -> 3 | T74: 20 | AB74: CLIMATOLOGÍA | AG74: 44044
A75: 64 | B75: 20209050089242 | C75: 44106 | D75: CIUDADANO | E75: FEMENINO | F75: CORREO ELECTRÓNICO | G75: SOLICITUD DE INFORMACIÓN Y DOCUMENTOS | H75: SOLICITUD DE INFORMACIÓN HIDROMETEOROLÓGICA | I75: NO | J75: GRUPO DE ATENCIÓN AL CIUDADANO | K75: 44111 | L75: CORREO ELECTRÓNICO | N75: =IFERROR(WORKDAY(C75,T75,DiasNOLaborables),"") -> 44137 | O75: =+IF(C75="","",IF(K75="","SIN RESPUESTA",(IF(K75<=N75,"A TIEMPO","FUERA DE TIEMPO")))) -> A TIEMPO | P75: =IF(K75="","",NETWORKDAYS(C75+1,K75,DiasNOLaborables)) -> 3 | T75: 20 | AB75: ERA | AC75: EVALUACIÓN REGIONAL DEL AGUA | AG75: 44045
A76: 65 | B76: 20209050089282 | C76: 44106 | D76: CIUDADANO | E76: FEMENINO | F76: CORREO ELECTRÓNICO | G76: SOLICITUD DE INFORMACIÓN Y DOCUMENTOS | H76: SOLICITUD DE INFORMACIÓN HIDROMETEOROLÓGICA | I76: NO | J76: GRUPO DE ATENCIÓN AL CIUDADANO | K76: 44111 | L76: CORREO ELECTRÓNICO | N76: =IFERROR(WORKDAY(C76,T76,DiasNOLaborables),"") -> 44137 | O76: =+IF(C76="","",IF(K76="","SIN RESPUESTA",(IF(K76<=N76,"A TIEMPO","FUERA DE TIEMPO")))) -> A TIEMPO | P76: =IF(K76="","",NETWORKDAYS(C76+1,K76,DiasNOLaborables)) -> 3 | T76: 20 | AB76: ESTUDIO NACIONAL DEL AGUA | AG76: 44051
A77: 66 | B77: 20209050089292 | C77: 44106 | D77: CIUDADANO | E77: FEMENINO | F77: CORREO ELECTRÓNICO | G77: SOLICITUD DE INFORMACIÓN Y DOCUMENTOS | H77: SOLICITUD DE INFORMACIÓN HIDROMETEOROLÓGICA | I77: NO | J77: GRUPO DE ATENCIÓN AL CIUDADANO | K77: 44111 | L77: CORREO ELECTRÓNICO | N77: =IFERROR(WORKDAY(C77,T77,DiasNOLaborables),"") -> 44137 | O77: =+IF(C77="","",IF(K77="","SIN RESPUESTA",(IF(K77<=N77,"A TIEMPO","FUERA DE TIEMPO")))) -> A TIEMPO | P77: =IF(K77="","",NETWORKDAYS(C77+1,K77,DiasNOLaborables)) -> 3 | T77: 20 | AB77: INFORMES AMBIENTALES | AG77: 44052
A78: =IF(B77<>"",A77+1,"") -> 67 | B78: 20209050089302 | C78: 44106 | D78: CIUDADANO | E78: MASCULINO | F78: CORREO ELECTRÓNICO | G78: SOLICITUD DE INFORMACIÓN Y DOCUMENTOS | H78: SOLICITUD DE INFORMACIÓN HIDROMETEOROLÓGICA | I78: NO | J78: GRUPO DE ATENCIÓN AL CIUDADANO | K78: 44111 | L78: CORREO ELECTRÓNICO | N78: =IFERROR(WORKDAY(C78,T78,DiasNOLaborables),"") -> 44137 | O78: =+IF(C78="","",IF(K78="","SIN RESPUESTA",(IF(K78<=N78,"A TIEMPO","FUERA DE TIEMPO")))) -> A TIEMPO | P78: =IF(K78="","",NETWORKDAYS(C78+1,K78,DiasNOLaborables)) -> 3 | T78: 20 | AB78: JURIDICO | AG78: 44058
A79: 68 | B79: 20209050089352 | C79: 44106 | D79: CIUDADANO | E79: MASCULINO | F79: CORREO ELECTRÓNICO | G79: SOLICITUD DE INFORMACIÓN Y DOCUMENTOS | H79: SOLICITUD DE INFORMACIÓN HIDROMETEOROLÓGICA | I79: NO | J79: GRUPO DE ATENCIÓN AL CIUDADANO | K79: 44111 | L79: CORREO ELECTRÓNICO | N79: =IFERROR(WORKDAY(C79,T79,DiasNOLaborables),"") -> 44137 | O79: =+IF(C79="","",IF(K79="","SIN RESPUESTA",(IF(K79<=N79,"A TIEMPO","FUERA DE TIEMPO")))) -> A TIEMPO | P79: =IF(K79="","",NETWORKDAYS(C79+1,K79,DiasNOLaborables)) -> 3 | T79: 20 | AB79: LABORATORIO DE CALIDAD AMBIENTAL | AG79: 44059
A80: 69 | B80: 20209050088702 | C80: 44106 | D80: EMPRESA PRIVADA | E80: MASCULINO | F80: CORREO ELECTRÓNICO | G80: CERTIFICACIONES DE TIEMPO, CLIMA Y EVENTOS HIDROLÓGICOS | H80: CERTIFICACIONES DE TIEMPO Y CLIMA | I80: SI | J80: SUBDIRECCIÓN DE METEOROLOGÍA | K80: 44106 | L80: CORREO ELECTRÓNICO | N80: =IFERROR(WORKDAY(C80,T80,DiasNOLaborables),"") -> 44158 | O80: =+IF(C80="","",IF(K80="","SIN RESPUESTA",(IF(K80<=N80,"A TIEMPO","FUERA DE TIEMPO")))) -> A TIEMPO | P80: =IF(K80="","",NETWORKDAYS(C80+1,K80,DiasNOLaborables)) -> -1 | T80: 35 | AB80: MEDIOS DE COMUNICACIÓN | AG80: 44060
A81: 70 | B81: 20209050088732 | C81: 44106 | D81: ENTIDAD PÚBLICA | E81: MASCULINO | F81: CORREO ELECTRÓNICO | G81: SOLICITUD DE INFORMACIÓN Y DOCUMENTOS | H81: SOLICITUD DE INFORMACIÓN HIDROMETEOROLÓGICA | I81: SI | J81: SUBDIRECCIÓN DE ECOSISTEMAS E INFORMACIÓN AMBIENTAL | K81: 44118 | L81: CORREO ELECTRÓNICO | N81: =IFERROR(WORKDAY(C81,T81,DiasNOLaborables),"") -> 44137 | O81: =+IF(C81="","",IF(K81="","SIN RESPUESTA",(IF(K81<=N81,"A TIEMPO","FUERA DE TIEMPO")))) -> A TIEMPO | P81: =IF(K81="","",NETWORKDAYS(C81+1,K81,DiasNOLaborables)) -> 7 | T81: 20 | AB81: METEOROLOGÍA AERONAÚTICA | AG81: 44065
A82: 71 | B82: 20209050088742 | C82: 44106 | D82: EMPRESA PRIVADA | E82: FEMENINO | F82: CORREO ELECTRÓNICO | G82: CERTIFICACIONES DE TIEMPO, CLIMA Y EVENTOS HIDROLÓGICOS | H82: CERTIFICACIONES DE TIEMPO Y CLIMA | I82: SI | J82: SUBDIRECCIÓN DE METEOROLOGÍA | K82: 44106 | L82: CORREO ELECTRÓNICO | N82: =IFERROR(WORKDAY(C82,T82,DiasNOLaborables),"") -> 44158 | O82: =+IF(C82="","",IF(K82="","SIN RESPUESTA",(IF(K82<=N82,"A TIEMPO","FUERA DE TIEMPO")))) -> A TIEMPO | P82: =IF(K82="","",NETWORKDAYS(C82+1,K82,DiasNOLaborables)) -> -1 | T82: 35 | AB82: MODELACIÓN HIDROLÓGICA | AG82: 44066
A83: 72 | B83: 20209050088752 | C83: 44106 | D83: FUNCIONARIO IDEAM | E83: MASCULINO | F83: CORREO ELECTRÓNICO | G83: SOLICITUD DE INFORMACIÓN Y DOCUMENTOS | H83: ADMINISTRATIVA | I83: SI | J83: GRUPO DE ADMINISTRACIÓN Y DESARROLLO DEL TALENTO HUMANO | K83: 44118 | L83: CORREO ELECTRÓNICO | N83: =IFERROR(WORKDAY(C83,T83,DiasNOLaborables),"") -> 44137 | O83: =+IF(C83="","",IF(K83="","SIN RESPUESTA",(IF(K83<=N83,"A TIEMPO","FUERA DE TIEMPO")))) -> A TIEMPO | P83: =IF(K83="","",NETWORKDAYS(C83+1,K83,DiasNOLaborables)) -> 7 | T83: 20 | AB83: MODELAMIENTO METEOROLÓGICO | AG83: 44072
A84: 73 | B84: 20209050088762 | C84: 44106 | D84: FUNCIONARIO IDEAM | E84: MASCULINO | F84: CORREO ELECTRÓNICO | G84: SOLICITUD DE INFORMACIÓN Y DOCUMENTOS | H84: ADMINISTRATIVA | I84: SI | J84: GRUPO DE ADMINISTRACIÓN Y DESARROLLO DEL TALENTO HUMANO | K84: 44109 | L84: CORREO ELECTRÓNICO | N84: =IFERROR(WORKDAY(C84,T84,DiasNOLaborables),"") -> 44137 | O84: =+IF(C84="","",IF(K84="","SIN RESPUESTA",(IF(K84<=N84,"A TIEMPO","FUERA DE TIEMPO")))) -> A TIEMPO | P84: =IF(K84="","",NETWORKDAYS(C84+1,K84,DiasNOLaborables)) -> 1 | T84: 20 | AB84: OPERACIÓN DE REDES | AG84: 44073
A85: 74 | B85: 20209050088782 | C85: 44106 | D85: CIUDADANO | E85: MASCULINO | F85: CORREO ELECTRÓNICO | G85: CERTIFICACIONES DE TIEMPO, CLIMA Y EVENTOS HIDROLÓGICOS | H85: CERTIFICACIONES DE TIEMPO Y CLIMA | I85: SI | J85: SUBDIRECCIÓN DE METEOROLOGÍA | K85: 44110 | L85: CORREO ELECTRÓNICO | N85: =IFERROR(WORKDAY(C85,T85,DiasNOLaborables),"") -> 44158 | O85: =+IF(C85="","",IF(K85="","SIN RESPUESTA",(IF(K85<=N85,"A TIEMPO","FUERA DE TIEMPO")))) -> A TIEMPO | P85: =IF(K85="","",NETWORKDAYS(C85+1,K85,DiasNOLaborables)) -> 2 | T85: 35 | AB85: PRONÓSTICOS Y ALERTAS | AG85: 44079
A86: 75 | B86: 20209050088832 | C86: 44106 | D86: FUNCIONARIO IDEAM | E86: MASCULINO | F86: CORREO ELECTRÓNICO | G86: SOLICITUD DE INFORMACIÓN Y DOCUMENTOS | H86: ADMINISTRATIVA | I86: SI | J86: GRUPO DE ADMINISTRACIÓN Y DESARROLLO DEL TALENTO HUMANO | K86: 44112 | L86: CORREO ELECTRÓNICO | N86: =IFERROR(WORKDAY(C86,T86,DiasNOLaborables),"") -> 44137 | O86: =+IF(C86="","",IF(K86="","SIN RESPUESTA",(IF(K86<=N86,"A TIEMPO","FUERA DE TIEMPO")))) -> A TIEMPO | P86: =IF(K86="","",NETWORKDAYS(C86+1,K86,DiasNOLaborables)) -> 4 | T86: 20 | AB86: REGISTROS AMBIENTALES | AG86: 44080
A87: 76 | B87: 20209050088852 | C87: 44106 | D87: EMPRESA PRIVADA | E87: MASCULINO | F87: CORREO ELECTRÓNICO | G87: CERTIFICACIONES DE TIEMPO, CLIMA Y EVENTOS HIDROLÓGICOS | H87: CERTIFICACIONES DE TIEMPO Y CLIMA | I87: SI | J87: SUBDIRECCIÓN DE METEOROLOGÍA | K87: 44106 | L87: CORREO ELECTRÓNICO | N87: =IFERROR(WORKDAY(C87,T87,DiasNOLaborables),"") -> 44158 | O87: =+IF(C87="","",IF(K87="","SIN RESPUESTA",(IF(K87<=N87,"A TIEMPO","FUERA DE TIEMPO")))) -> A TIEMPO | P87: =IF(K87="","",NETWORKDAYS(C87+1,K87,DiasNOLaborables)) -> -1 | T87: 35 | AB87: SEDIMENTOS | AG87: 44086
A88: 77 | B88: 20209050088862 | C88: 44106 | D88: ENTIDAD PÚBLICA | E88: MASCULINO | F88: CORREO ELECTRÓNICO | G88: PETICIÓN | H88: ADMINISTRATIVA | I88: SI | J88: OFICINA ASESORA JURÍDICA | K88: 44144 | L88: CORREO ELECTRÓNICO | N88: =IFERROR(WORKDAY(C88,T88,DiasNOLaborables),"") -> 44151 | O88: =+IF(C88="","",IF(K88="","SIN RESPUESTA",(IF(K88<=N88,"A TIEMPO","FUERA DE TIEMPO")))) -> A TIEMPO | P88: =IF(K88="","",NETWORKDAYS(C88+1,K88,DiasNOLaborables)) -> 25 | T88: 30 | AB88: SIA | AC88: SISTEMA DE INFORMACIÓN AMBIENTAL | AG88: 44087
A89: 78 | B89: 20209050088882 | C89: 44106 | D89: FUNCIONARIO IDEAM | E89: MASCULINO | F89: CORREO ELECTRÓNICO | G89: SOLICITUD DE INFORMACIÓN Y DOCUMENTOS | H89: ADMINISTRATIVA | I89: SI | J89: GRUPO DE ADMINISTRACIÓN Y DESARROLLO DEL TALENTO HUMANO | K89: 44118 | L89: CORREO ELECTRÓNICO | N89: =IFERROR(WORKDAY(C89,T89,DiasNOLaborables),"") -> 44137 | O89: =+IF(C89="","",IF(K89="","SIN RESPUESTA",(IF(K89<=N89,"A TIEMPO","FUERA DE TIEMPO")))) -> A TIEMPO | P89: =IF(K89="","",NETWORKDAYS(C89+1,K89,DiasNOLaborables)) -> 7 | T89: 20 | AB89: SIRH | AC89: SISTEMA DE INFORMACIÓN DEL RECURDO HÍDRICO | AG89: 44093
A90: 79 | B90: 20209050088892 | C90: 44106 | D90: FUNCIONARIO IDEAM | E90: MASCULINO | F90: CORREO ELECTRÓNICO | G90: SOLICITUD DE INFORMACIÓN Y DOCUMENTOS | H90: ADMINISTRATIVA | I90: SI | J90: GRUPO DE ADMINISTRACIÓN Y DESARROLLO DEL TALENTO HUMANO | K90: 44118 | L90: CORREO ELECTRÓNICO | N90: =IFERROR(WORKDAY(C90,T90,DiasNOLaborables),"") -> 44137 | O90: =+IF(C90="","",IF(K90="","SIN RESPUESTA",(IF(K90<=N90,"A TIEMPO","FUERA DE TIEMPO")))) -> A TIEMPO | P90: =IF(K90="","",NETWORKDAYS(C90+1,K90,DiasNOLaborables)) -> 7 | T90: 20 | AB90: SOLICITUD DE INFORMACIÓN HIDROMETEOROLÓGICA | AG90: 44094
A91: 80 | B91: 20209050088902 | C91: 44106 | D91: EMPRESA PRIVADA | E91: FEMENINO | F91: CORREO ELECTRÓNICO | G91: SOLICITUD DE INFORMACIÓN Y DOCUMENTOS | H91: SOLICITUD DE INFORMACIÓN HIDROMETEOROLÓGICA | I91: SI | J91: SUBDIRECCIÓN DE ESTUDIOS AMBIENTALES | K91: 44119 | L91: CORREO ELECTRÓNICO | N91: =IFERROR(WORKDAY(C91,T91,DiasNOLaborables),"") -> 44137 | O91: =+IF(C91="","",IF(K91="","SIN RESPUESTA",(IF(K91<=N91,"A TIEMPO","FUERA DE TIEMPO")))) -> A TIEMPO | P91: =IF(K91="","",NETWORKDAYS(C91+1,K91,DiasNOLaborables)) -> 8 | T91: 20 | AB91: SUELOS Y TIERRAS | AG91: 44100
A92: 81 | B92: 20209050088932 | C92: 44106 | D92: EMPRESA PRIVADA | E92: MASCULINO | F92: CORREO ELECTRÓNICO | G92: SOLICITUD DE INFORMACIÓN Y DOCUMENTOS | H92: SOLICITUD DE INFORMACIÓN HIDROMETEOROLÓGICA | I92: SI | J92: OFICINA DE INFORMÁTICA | K92: 44119 | L92: CORREO ELECTRÓNICO | N92: =IFERROR(WORKDAY(C92,T92,DiasNOLaborables),"") -> 44137 | O92: =+IF(C92="","",IF(K92="","SIN RESPUESTA",(IF(K92<=N92,"A TIEMPO","FUERA DE TIEMPO")))) -> A TIEMPO | P92: =IF(K92="","",NETWORKDAYS(C92+1,K92,DiasNOLaborables)) -> 8 | T92: 20 | AB92: VISITAS ACADÉMICAS | AG92: 44101
A93: 82 | B93: 20209050089002 | C93: 44106 | D93: EMPRESA PRIVADA | E93: MASCULINO | F93: CORREO ELECTRÓNICO | G93: CERTIFICACIONES DE TIEMPO, CLIMA Y EVENTOS HIDROLÓGICOS | H93: CERTIFICACIONES DE TIEMPO Y CLIMA | I93: SI | J93: SUBDIRECCIÓN DE METEOROLOGÍA | K93: 44110 | L93: CORREO ELECTRÓNICO | N93: =IFERROR(WORKDAY(C93,T93,DiasNOLaborables),"") -> 44158 | O93: =+IF(C93="","",IF(K93="","SIN RESPUESTA",(IF(K93<=N93,"A TIEMPO","FUERA DE TIEMPO")))) -> A TIEMPO | P93: =IF(K93="","",NETWORKDAYS(C93+1,K93,DiasNOLaborables)) -> 2 | T93: 35 | AB93: WEB Y CORREO | AG93: 44107
A94: 83 | B94: 20209050087052 | C94: 44106 | D94: ACADEMIA | E94: FEMENINO | F94: MODULO CONTACTENOS | G94: SOLICITUD DE INFORMACIÓN Y DOCUMENTOS | H94: SOLICITUD DE INFORMACIÓN HIDROMETEOROLÓGICA | I94: SI | J94: OFICINA DE INFORMÁTICA | K94: 44106 | L94: CORREO ELECTRÓNICO | N94: =IFERROR(WORKDAY(C94,T94,DiasNOLaborables),"") -> 44137 | O94: =+IF(C94="","",IF(K94="","SIN RESPUESTA",(IF(K94<=N94,"A TIEMPO","FUERA DE TIEMPO")))) -> A TIEMPO | P94: =IF(K94="","",NETWORKDAYS(C94+1,K94,DiasNOLaborables)) -> -1 | T94: 20 | AB94: ZONIFICACIÓN HIDROGRÁFICA | AG94: 44108
A95: 84 | B95: 20209050089092 | C95: 44106 | D95: CIUDADANO | E95: MASCULINO | F95: CORREO ELECTRÓNICO | G95: SOLICITUD DE INFORMACIÓN Y DOCUMENTOS | H95: SOLICITUD DE INFORMACIÓN HIDROMETEOROLÓGICA | I95: SI | J95: SUBDIRECCIÓN DE ECOSISTEMAS E INFORMACIÓN AMBIENTAL | K95: 44119 | L95: CORREO ELECTRÓNICO | N95: =IFERROR(WORKDAY(C95,T95,DiasNOLaborables),"") -> 44137 | O95: =+IF(C95="","",IF(K95="","SIN RESPUESTA",(IF(K95<=N95,"A TIEMPO","FUERA DE TIEMPO")))) -> A TIEMPO | P95: =IF(K95="","",NETWORKDAYS(C95+1,K95,DiasNOLaborables)) -> 8 | T95: 20 | AG95: 44114
A96: 85 | B96: 20209050089112 | C96: 44106 | D96: FUNCIONARIO IDEAM | E96: MASCULINO | F96: CORREO ELECTRÓNICO | G96: SOLICITUD DE INFORMACIÓN Y DOCUMENTOS | H96: ADMINISTRATIVA | I96: SI | J96: GRUPO DE ADMINISTRACIÓN Y DESARROLLO DEL TALENTO HUMANO | K96: 44117 | L96: CORREO ELECTRÓNICO | N96: =IFERROR(WORKDAY(C96,T96,DiasNOLaborables),"") -> 44137 | O96: =+IF(C96="","",IF(K96="","SIN RESPUESTA",(IF(K96<=N96,"A TIEMPO","FUERA DE TIEMPO")))) -> A TIEMPO | P96: =IF(K96="","",NETWORKDAYS(C96+1,K96,DiasNOLaborables)) -> 6 | T96: 20 | AB96: MEDIO DE RECEPCIÓN | AG96: 44115
A97: 86 | B97: 20209050089122 | C97: 44106 | D97: FUNCIONARIO IDEAM | E97: MASCULINO | F97: CORREO ELECTRÓNICO | G97: SOLICITUD DE INFORMACIÓN Y DOCUMENTOS | H97: ADMINISTRATIVA | I97: SI | J97: GRUPO DE ADMINISTRACIÓN Y DESARROLLO DEL TALENTO HUMANO | K97: 44120 | L97: CORREO ELECTRÓNICO | N97: =IFERROR(WORKDAY(C97,T97,DiasNOLaborables),"") -> 44137 | O97: =+IF(C97="","",IF(K97="","SIN RESPUESTA",(IF(K97<=N97,"A TIEMPO","FUERA DE TIEMPO")))) -> A TIEMPO | P97: =IF(K97="","",NETWORKDAYS(C97+1,K97,DiasNOLaborables)) -> 9 | T97: 20 | AB97: ATENCIÓN PRESENCIAL | AG97: 44116
A98: 87 | B98: 20209050089162 | C98: 44106 | D98: FUNCIONARIO IDEAM | E98: MASCULINO | F98: CORREO ELECTRÓNICO | G98: SOLICITUD DE INFORMACIÓN Y DOCUMENTOS | H98: ADMINISTRATIVA | I98: SI | J98: GRUPO DE ADMINISTRACIÓN Y DESARROLLO DEL TALENTO HUMANO | K98: 44120 | L98: CORREO ELECTRÓNICO | N98: =IFERROR(WORKDAY(C98,T98,DiasNOLaborables),"") -> 44137 | O98: =+IF(C98="","",IF(K98="","SIN RESPUESTA",(IF(K98<=N98,"A TIEMPO","FUERA DE TIEMPO")))) -> A TIEMPO | P98: =IF(K98="","",NETWORKDAYS(C98+1,K98,DiasNOLaborables)) -> 9 | T98: 20 | AB98: ATENCIÓN TELEFÓNICA | AG98: 44121
A99: 88 | B99: 20209050089192 | C99: 44106 | D99: EMPRESA PRIVADA | E99: MASCULINO | F99: CORREO ELECTRÓNICO | G99: SOLICITUD DE INFORMACIÓN Y DOCUMENTOS | H99: SOLICITUD DE INFORMACIÓN HIDROMETEOROLÓGICA | I99: SI | J99: OFICINA DE INFORMÁTICA | K99: 44112 | L99: CORREO ELECTRÓNICO | N99: =IFERROR(WORKDAY(C99,T99,DiasNOLaborables),"") -> 44137 | O99: =+IF(C99="","",IF(K99="","SIN RESPUESTA",(IF(K99<=N99,"A TIEMPO","FUERA DE TIEMPO")))) -> A TIEMPO | P99: =IF(K99="","",NETWORKDAYS(C99+1,K99,DiasNOLaborables)) -> 4 | T99: 20 | AB99: BUZÓN DE SUGERENCIAS | AG99: 44122
A100: 89 | B100: 20209050089202 | C100: 44106 | D100: EMPRESA PRIVADA | E100: FEMENINO | F100: CORREO ELECTRÓNICO | G100: CERTIFICACIONES DE TIEMPO, CLIMA Y EVENTOS HIDROLÓGICOS | H100: CERTIFICACIONES DE TIEMPO Y CLIMA | I100: SI | J100: SUBDIRECCIÓN DE METEOROLOGÍA | K100: 44109 | L100: CORREO ELECTRÓNICO | N100: =IFERROR(WORKDAY(C100,T100,DiasNOLaborables),"") -> 44158 | O100: =+IF(C100="","",IF(K100="","SIN RESPUESTA",(IF(K100<=N100,"A TIEMPO","FUERA DE TIEMPO")))) -> A TIEMPO | P100: =IF(K100="","",NETWORKDAYS(C100+1,K100,DiasNOLaborables)) -> 1 | T100: 35 | AB100: CHAT | AG100: 44128
A101: 90 | B101: 20209050089212 | C101: 44106 | D101: CIUDADANO | E101: MASCULINO | F101: CORREO ELECTRÓNICO | G101: SOLICITUD DE INFORMACIÓN Y DOCUMENTOS | H101: SOLICITUD DE INFORMACIÓN HIDROMETEOROLÓGICA | I101: SI | J101: SUBDIRECCIÓN DE ECOSISTEMAS E INFORMACIÓN AMBIENTAL | K101: 44125 | L101: CORREO ELECTRÓNICO | N101: =IFERROR(WORKDAY(C101,T101,DiasNOLaborables),"") -> 44137 | O101: =+IF(C101="","",IF(K101="","SIN RESPUESTA",(IF(K101<=N101,"A TIEMPO","FUERA DE TIEMPO")))) -> A TIEMPO | P101: =IF(K101="","",NETWORKDAYS(C101+1,K101,DiasNOLaborables)) -> 12 | T101: =IFERROR(VLOOKUP(G101,$AB$50:$AC$63,2),"") -> 20 | AB101: CORREO CERTIFICADO | AG101: 44129
A102: 91 | B102: 20209050089252 | C102: 44106 | D102: ENTIDAD PÚBLICA | E102: FEMENINO | F102: CORREO ELECTRÓNICO | G102: SOLICITUD DE INFORMACIÓN Y DOCUMENTOS | H102: SOLICITUD DE INFORMACIÓN HIDROMETEOROLÓGICA | I102: SI | J102: SUBDIRECCIÓN DE ESTUDIOS AMBIENTALES | K102: 44117 | L102: CORREO ELECTRÓNICO | N102: =IFERROR(WORKDAY(C102,T102,DiasNOLaborables),"") -> 44137 | O102: =+IF(C102="","",IF(K102="","SIN RESPUESTA",(IF(K102<=N102,"A TIEMPO","FUERA DE TIEMPO")))) -> A TIEMPO | P102: =IF(K102="","",NETWORKDAYS(C102+1,K102,DiasNOLaborables)) -> 6 | T102: 20 | AB102: CORREO ELECTRÓNICO | AG102: 44135
A103: 92 | B103: 20209050089142 | C103: 44106 | D103: CIUDADANO | E103: FEMENINO | F103: CORREO ELECTRÓNICO | G103: SOLICITUD DE INFORMACIÓN Y DOCUMENTOS | H103: SOLICITUD DE INFORMACIÓN HIDROMETEOROLÓGICA | I103: NO | J103: GRUPO DE ATENCIÓN AL CIUDADANO | K103: 44107 | L103: CORREO ELECTRÓNICO | N103: =IFERROR(WORKDAY(C103,T103,DiasNOLaborables),"") -> 44137 | O103: =+IF(C103="","",IF(K103="","SIN RESPUESTA",(IF(K103<=N103,"A TIEMPO","FUERA DE TIEMPO")))) -> A TIEMPO | P103: =IF(K103="","",NETWORKDAYS(C103+1,K103,DiasNOLaborables)) -> 0 | T103: 20 | AB103: FAX | AG103: 44136
A104: 93 | B104: 20209050089082 | C104: 44106 | D104: CIUDADANO | E104: FEMENINO | F104: CORREO ELECTRÓNICO | G104: SOLICITUD DE INFORMACIÓN Y DOCUMENTOS | H104: SOLICITUD DE INFORMACIÓN HIDROMETEOROLÓGICA | I104: NO | J104: GRUPO DE ATENCIÓN AL CIUDADANO | K104: 44107 | L104: CORREO ELECTRÓNICO | N104: =IFERROR(WORKDAY(C104,T104,DiasNOLaborables),"") -> 44137 | O104: =+IF(C104="","",IF(K104="","SIN RESPUESTA",(IF(K104<=N104,"A TIEMPO","FUERA DE TIEMPO")))) -> A TIEMPO | P104: =IF(K104="","",NETWORKDAYS(C104+1,K104,DiasNOLaborables)) -> 0 | T104: 20 | AB104: INTERNO | AG104: 44142
A105: 94 | B105: 20209050089102 | C105: 44106 | D105: ENTIDAD PÚBLICA | E105: PERSONA JURÍDICA | F105: CORREO ELECTRÓNICO | G105: SOLICITUD DE INFORMACIÓN Y DOCUMENTOS | H105: SOLICITUD DE INFORMACIÓN HIDROMETEOROLÓGICA | I105: NO | J105: GRUPO DE ATENCIÓN AL CIUDADANO | K105: 44107 | L105: CORREO ELECTRÓNICO | N105: =IFERROR(WORKDAY(C105,T105,DiasNOLaborables),"") -> 44137 | O105: =+IF(C105="","",IF(K105="","SIN RESPUESTA",(IF(K105<=N105,"A TIEMPO","FUERA DE TIEMPO")))) -> A TIEMPO | P105: =IF(K105="","",NETWORKDAYS(C105+1,K105,DiasNOLaborables)) -> 0 | Q105: =IF(NETWORKDAYS(N105+1,K105,DiasNOLaborables)<=0,"",NETWORKDAYS(N105+1,K105,DiasNOLaborables)) ->  | T105: 20 | AB105: MODULO CONTACTENOS | AG105: 44143
A106: 95 | B106: 20209050089042 | C106: 44106 | D106: CIUDADANO | E106: MASCULINO | F106: CORREO ELECTRÓNICO | G106: SOLICITUD DE INFORMACIÓN Y DOCUMENTOS | H106: SOLICITUD DE INFORMACIÓN HIDROMETEOROLÓGICA | I106: NO | J106: GRUPO DE ATENCIÓN AL CIUDADANO | K106: 44108 | L106: CORREO ELECTRÓNICO | N106: =IFERROR(WORKDAY(C106,T106,DiasNOLaborables),"") -> 44137 | O106: =+IF(C106="","",IF(K106="","SIN RESPUESTA",(IF(K106<=N106,"A TIEMPO","FUERA DE TIEMPO")))) -> A TIEMPO | P106: =IF(K106="","",NETWORKDAYS(C106+1,K106,DiasNOLaborables)) -> 0 | T106: 20 | AB106: WEB (MÓDULO DE SOLICITUD DE INFORMACIÓN HIDROMETEOROLÓGICA) | AG106: 44149
A107: 96 | B107: 20209050089152 | C107: 44106 | D107: CIUDADANO | E107: FEMENINO | F107: CORREO ELECTRÓNICO | G107: SOLICITUD DE INFORMACIÓN Y DOCUMENTOS | H107: SOLICITUD DE INFORMACIÓN HIDROMETEOROLÓGICA | I107: NO | J107: GRUPO DE ATENCIÓN AL CIUDADANO | K107: 44108 | L107: CORREO ELECTRÓNICO | N107: =IFERROR(WORKDAY(C107,T107,DiasNOLaborables),"") -> 44137 | O107: =+IF(C107="","",IF(K107="","SIN RESPUESTA",(IF(K107<=N107,"A TIEMPO","FUERA DE TIEMPO")))) -> A TIEMPO | P107: =IF(K107="","",NETWORKDAYS(C107+1,K107,DiasNOLaborables)) -> 0 | T107: 20 | AG107: 44150
A108: 97 | B108: 20209050089922 | C108: 44106 | D108: EMPRESA PRIVADA | E108: MASCULINO | F108: CORREO ELECTRÓNICO | G108: CERTIFICACIONES DE TIEMPO, CLIMA Y EVENTOS HIDROLÓGICOS | H108: CERTIFICACIONES DE TIEMPO Y CLIMA | I108: SI | J108: SUBDIRECCIÓN DE METEOROLOGÍA | K108: 44112 | L108: CORREO ELECTRÓNICO | N108: =IFERROR(WORKDAY(C108,T108,DiasNOLaborables),"") -> 44158 | O108: =+IF(C108="","",IF(K108="","SIN RESPUESTA",(IF(K108<=N108,"A TIEMPO","FUERA DE TIEMPO")))) -> A TIEMPO | P108: =IF(K108="","",NETWORKDAYS(C108+1,K108,DiasNOLaborables)) -> 4 | T108: 35 | AB108: ¿REQUERIMIENTO FUE ESCALADO? | AG108: 44156
A109: 98 | B109: 20209050089052 | C109: 44106 | D109: CIUDADANO | E109: FEMENINO | F109: MODULO CONTACTENOS | G109: SOLICITUD DE INFORMACIÓN Y DOCUMENTOS | H109: ADMINISTRATIVA | I109: SI | J109: GRUPO DE ADMINISTRACIÓN Y DESARROLLO DEL TALENTO HUMANO | K109: 44106 | L109: CORREO ELECTRÓNICO | N109: =IFERROR(WORKDAY(C109,T109,DiasNOLaborables),"") -> 44137 | O109: =+IF(C109="","",IF(K109="","SIN RESPUESTA",(IF(K109<=N109,"A TIEMPO","FUERA DE TIEMPO")))) -> A TIEMPO | P109: =IF(K109="","",NETWORKDAYS(C109+1,K109,DiasNOLaborables)) -> -1 | T109: 20 | AB109: SI | AG109: 44157
A110: 99 | B110: 20209050089422 | C110: 44107 | D110: CIUDADANO | E110: FEMENINO | F110: MODULO CONTACTENOS | G110: SOLICITUD DE INFORMACIÓN Y DOCUMENTOS | H110: SOLICITUD DE INFORMACIÓN HIDROMETEOROLÓGICA | I110: SI | J110: OFICINA DEL SERVICIO DE PRONÓSTICOS Y ALERTAS | K110: 44109 | L110: CORREO ELECTRÓNICO | N110: =IFERROR(WORKDAY(C110,T110,DiasNOLaborables),"") -> 44137 | O110: =+IF(C110="","",IF(K110="","SIN RESPUESTA",(IF(K110<=N110,"A TIEMPO","FUERA DE TIEMPO")))) -> A TIEMPO | P110: =IF(K110="","",NETWORKDAYS(C110+1,K110,DiasNOLaborables)) -> 1 | T110: 20 | AB110: NO | AG110: 44163
A111: 100 | B111: 20209050089432 | C111: 44107 | D111: CIUDADANO | E111: FEMENINO | F111: MODULO CONTACTENOS | G111: SOLICITUD DE INFORMACIÓN Y DOCUMENTOS | H111: SOLICITUD DE INFORMACIÓN HIDROMETEOROLÓGICA | I111: SI | J111: OFICINA DEL SERVICIO DE PRONÓSTICOS Y ALERTAS | K111: 44109 | L111: CORREO ELECTRÓNICO | N111: =IFERROR(WORKDAY(C111,T111,DiasNOLaborables),"") -> 44137 | O111: =+IF(C111="","",IF(K111="","SIN RESPUESTA",(IF(K111<=N111,"A TIEMPO","FUERA DE TIEMPO")))) -> A TIEMPO | P111: =IF(K111="","",NETWORKDAYS(C111+1,K111,DiasNOLaborables)) -> 1 | T111: 20 | AG111: 44164
A112: 101 | B112: 20209050089372 | C112: 44107 | D112: CIUDADANO | E112: MASCULINO | F112: CORREO ELECTRÓNICO | G112: SOLICITUD DE INFORMACIÓN Y DOCUMENTOS | H112: SOLICITUD DE INFORMACIÓN HIDROMETEOROLÓGICA | I112: NO | J112: GRUPO DE ATENCIÓN AL CIUDADANO | K112: 44116 | L112: CORREO ELECTRÓNICO | N112: =IFERROR(WORKDAY(C112,T112,DiasNOLaborables),"") -> 44137 | O112: =+IF(C112="","",IF(K112="","SIN RESPUESTA",(IF(K112<=N112,"A TIEMPO","FUERA DE TIEMPO")))) -> A TIEMPO | P112: =IF(K112="","",NETWORKDAYS(C112+1,K112,DiasNOLaborables)) -> 5 | T112: 20 | AB112: CANAL POR EL CUAL FUE RESUELTO EL REQUERIMIENTO | AG112: 44170
A113: 102 | B113: 20209050089442 | C113: 44107 | D113: CIUDADANO | E113: FEMENINO | F113: MODULO CONTACTENOS | G113: SOLICITUD DE INFORMACIÓN Y DOCUMENTOS | H113: SOLICITUD DE INFORMACIÓN HIDROMETEOROLÓGICA | I113: SI | J113: OFICINA DEL SERVICIO DE PRONÓSTICOS Y ALERTAS | K113: 44109 | L113: CORREO ELECTRÓNICO | N113: =IFERROR(WORKDAY(C113,T113,DiasNOLaborables),"") -> 44137 | O113: =+IF(C113="","",IF(K113="","SIN RESPUESTA",(IF(K113<=N113,"A TIEMPO","FUERA DE TIEMPO")))) -> A TIEMPO | P113: =IF(K113="","",NETWORKDAYS(C113+1,K113,DiasNOLaborables)) -> 1 | T113: 20 | AB113: CORREO ELECTRÓNICO | AG113: 44171
A114: 103 | B114: 20209050089452 | C114: 44107 | D114: CIUDADANO | E114: FEMENINO | F114: MODULO CONTACTENOS | G114: SOLICITUD DE INFORMACIÓN Y DOCUMENTOS | H114: SOLICITUD DE INFORMACIÓN HIDROMETEOROLÓGICA | I114: SI | J114: OFICINA DEL SERVICIO DE PRONÓSTICOS Y ALERTAS | K114: 44109 | L114: CORREO ELECTRÓNICO | N114: =IFERROR(WORKDAY(C114,T114,DiasNOLaborables),"") -> 44137 | O114: =+IF(C114="","",IF(K114="","SIN RESPUESTA",(IF(K114<=N114,"A TIEMPO","FUERA DE TIEMPO")))) -> A TIEMPO | P114: =IF(K114="","",NETWORKDAYS(C114+1,K114,DiasNOLaborables)) -> 1 | T114: 20 | AB114: CORREO CERTIFICADO | AG114: 44173
A115: 104 | B115: 20209050089412 | C115: 44107 | D115: CIUDADANO | E115: FEMENINO | F115: MODULO CONTACTENOS | G115: SOLICITUD DE INFORMACIÓN Y DOCUMENTOS | H115: SOLICITUD DE INFORMACIÓN HIDROMETEOROLÓGICA | I115: SI | J115: OFICINA DEL SERVICIO DE PRONÓSTICOS Y ALERTAS | K115: 44109 | L115: CORREO ELECTRÓNICO | N115: =IFERROR(WORKDAY(C115,T115,DiasNOLaborables),"") -> 44137 | O115: =+IF(C115="","",IF(K115="","SIN RESPUESTA",(IF(K115<=N115,"A TIEMPO","FUERA DE TIEMPO")))) -> A TIEMPO | P115: =IF(K115="","",NETWORKDAYS(C115+1,K115,DiasNOLaborables)) -> 1 | T115: 20 | AG115: 44177
A116: 105 | B116: 20209050089402 | C116: 44107 | D116: CIUDADANO | E116: FEMENINO | F116: MODULO CONTACTENOS | G116: SOLICITUD DE INFORMACIÓN Y DOCUMENTOS | H116: SOLICITUD DE INFORMACIÓN HIDROMETEOROLÓGICA | I116: SI | J116: OFICINA DEL SERVICIO DE PRONÓSTICOS Y ALERTAS | K116: 44109 | L116: CORREO ELECTRÓNICO | N116: =IFERROR(WORKDAY(C116,T116,DiasNOLaborables),"") -> 44137 | O116: =+IF(C116="","",IF(K116="","SIN RESPUESTA",(IF(K116<=N116,"A TIEMPO","FUERA DE TIEMPO")))) -> A TIEMPO | P116: =IF(K116="","",NETWORKDAYS(C116+1,K116,DiasNOLaborables)) -> 1 | T116: 20 | AG116: 44178
A117: 106 | B117: 20209050089362 | C117: 44107 | D117: CIUDADANO | E117: MASCULINO | F117: CORREO ELECTRÓNICO | G117: SOLICITUD DE INFORMACIÓN Y DOCUMENTOS | H117: SOLICITUD DE INFORMACIÓN HIDROMETEOROLÓGICA | I117: NO | J117: GRUPO DE ATENCIÓN AL CIUDADANO | K117: 44111 | L117: CORREO ELECTRÓNICO | N117: =IFERROR(WORKDAY(C117,T117,DiasNOLaborables),"") -> 44137 | O117: =+IF(C117="","",IF(K117="","SIN RESPUESTA",(IF(K117<=N117,"A TIEMPO","FUERA DE TIEMPO")))) -> A TIEMPO | P117: =IF(K117="","",NETWORKDAYS(C117+1,K117,DiasNOLaborables)) -> 3 | T117: 20 | AG117: 44184
A118: 107 | B118: 20209050090112 | C118: 44107 | D118: CIUDADANO | E118: MASCULINO | F118: CORREO ELECTRÓNICO | G118: SOLICITUD DE INFORMACIÓN Y DOCUMENTOS | H118: SOLICITUD DE INFORMACIÓN HIDROMETEOROLÓGICA | I118: NO | J118: GRUPO DE ATENCIÓN AL CIUDADANO | K118: 44111 | L118: CORREO ELECTRÓNICO | N118: =IFERROR(WORKDAY(C118,T118,DiasNOLaborables),"") -> 44137 | O118: =+IF(C118="","",IF(K118="","SIN RESPUESTA",(IF(K118<=N118,"A TIEMPO","FUERA DE TIEMPO")))) -> A TIEMPO | P118: =IF(K118="","",NETWORKDAYS(C118+1,K118,DiasNOLaborables)) -> 3 | T118: 20 | AG118: 44185
A119: 108 | B119: 20209050090122 | C119: 44107 | D119: CIUDADANO | E119: MASCULINO | F119: CORREO ELECTRÓNICO | G119: SOLICITUD DE INFORMACIÓN Y DOCUMENTOS | H119: SOLICITUD DE INFORMACIÓN HIDROMETEOROLÓGICA | I119: NO | J119: GRUPO DE ATENCIÓN AL CIUDADANO | K119: 44111 | L119: CORREO ELECTRÓNICO | N119: =IFERROR(WORKDAY(C119,T119,DiasNOLaborables),"") -> 44137 | O119: =+IF(C119="","",IF(K119="","SIN RESPUESTA",(IF(K119<=N119,"A TIEMPO","FUERA DE TIEMPO")))) -> A TIEMPO | P119: =IF(K119="","",NETWORKDAYS(C119+1,K119,DiasNOLaborables)) -> 3 | T119: 20 | AG119: 44190
A120: 109 | B120: 20209050090132 | C120: 44107 | D120: CIUDADANO | E120: MASCULINO | F120: CORREO ELECTRÓNICO | G120: SOLICITUD DE INFORMACIÓN Y DOCUMENTOS | H120: SOLICITUD DE INFORMACIÓN HIDROMETEOROLÓGICA | I120: NO | J120: GRUPO DE ATENCIÓN AL CIUDADANO | K120: 44111 | L120: CORREO ELECTRÓNICO | N120: =IFERROR(WORKDAY(C120,T120,DiasNOLaborables),"") -> 44137 | O120: =+IF(C120="","",IF(K120="","SIN RESPUESTA",(IF(K120<=N120,"A TIEMPO","FUERA DE TIEMPO")))) -> A TIEMPO | P120: =IF(K120="","",NETWORKDAYS(C120+1,K120,DiasNOLaborables)) -> 3 | T120: 20 | AG120: 44191
A121: 110 | B121: 20209050089382 | C121: 44107 | D121: ACADEMIA | E121: MASCULINO | F121: CORREO ELECTRÓNICO | G121: SOLICITUD DE INFORMACIÓN Y DOCUMENTOS | H121: SOLICITUD DE INFORMACIÓN HIDROMETEOROLÓGICA | I121: SI | J121: OFICINA DE INFORMÁTICA | K121: 44113 | L121: CORREO ELECTRÓNICO | N121: =IFERROR(WORKDAY(C121,T121,DiasNOLaborables),"") -> 44137 | O121: =+IF(C121="","",IF(K121="","SIN RESPUESTA",(IF(K121<=N121,"A TIEMPO","FUERA DE TIEMPO")))) -> A TIEMPO | P121: =IF(K121="","",NETWORKDAYS(C121+1,K121,DiasNOLaborables)) -> 5 | T121: 20 | AG121: 44192
A122: 111 | B122: 20209050089592 | C122: 44107 | D122: CIUDADANO | E122: MASCULINO | F122: MODULO CONTACTENOS | G122: SOLICITUD DE INFORMACIÓN Y DOCUMENTOS | H122: SOLICITUD DE INFORMACIÓN HIDROMETEOROLÓGICA | I122: NO | J122: GRUPO DE ATENCIÓN AL CIUDADANO | K122: 44120 | L122: CORREO ELECTRÓNICO | N122: =IFERROR(WORKDAY(C122,T122,DiasNOLaborables),"") -> 44137 | O122: =+IF(C122="","",IF(K122="","SIN RESPUESTA",(IF(K122<=N122,"A TIEMPO","FUERA DE TIEMPO")))) -> A TIEMPO | P122: =IF(K122="","",NETWORKDAYS(C122+1,K122,DiasNOLaborables)) -> 9 | T122: 20
A123: 112 | B123: 20209050089602 | C123: 44107 | D123: CIUDADANO | E123: MASCULINO | F123: MODULO CONTACTENOS | G123: SOLICITUD DE INFORMACIÓN Y DOCUMENTOS | H123: SOLICITUD DE INFORMACIÓN HIDROMETEOROLÓGICA | I123: NO | J123: GRUPO DE ATENCIÓN AL CIUDADANO | K123: 44120 | L123: CORREO ELECTRÓNICO | N123: =IFERROR(WORKDAY(C123,T123,DiasNOLaborables),"") -> 44137 | O123: =+IF(C123="","",IF(K123="","SIN RESPUESTA",(IF(K123<=N123,"A TIEMPO","FUERA DE TIEMPO")))) -> A TIEMPO | P123: =IF(K123="","",NETWORKDAYS(C123+1,K123,DiasNOLaborables)) -> 9 | T123: 20
A124: 113 | B124: 20209050089462 | C124: 44107 | D124: CIUDADANO | E124: FEMENINO | F124: MODULO CONTACTENOS | G124: SOLICITUD DE INFORMACIÓN Y DOCUMENTOS | H124: SOLICITUD DE INFORMACIÓN HIDROMETEOROLÓGICA | I124: NO | J124: GRUPO DE ATENCIÓN AL CIUDADANO | K124: 44123 | L124: CORREO ELECTRÓNICO | N124: =IFERROR(WORKDAY(C124,T124,DiasNOLaborables),"") -> 44137 | O124: =+IF(C124="","",IF(K124="","SIN RESPUESTA",(IF(K124<=N124,"A TIEMPO","FUERA DE TIEMPO")))) -> A TIEMPO | P124: =IF(K124="","",NETWORKDAYS(C124+1,K124,DiasNOLaborables)) -> 10 | T124: 20
A125: 114 | B125: 20209050089472 | C125: 44107 | D125: CIUDADANO | E125: FEMENINO | F125: MODULO CONTACTENOS | G125: SOLICITUD DE INFORMACIÓN Y DOCUMENTOS | H125: SOLICITUD DE INFORMACIÓN HIDROMETEOROLÓGICA | I125: NO | J125: GRUPO DE ATENCIÓN AL CIUDADANO | K125: 44123 | L125: CORREO ELECTRÓNICO | N125: =IFERROR(WORKDAY(C125,T125,DiasNOLaborables),"") -> 44137 | O125: =+IF(C125="","",IF(K125="","SIN RESPUESTA",(IF(K125<=N125,"A TIEMPO","FUERA DE TIEMPO")))) -> A TIEMPO | P125: =IF(K125="","",NETWORKDAYS(C125+1,K125,DiasNOLaborables)) -> 10 | T125: 20
A126: 115 | B126: 20209050089482 | C126: 44107 | D126: CIUDADANO | E126: MASCULINO | F126: MODULO CONTACTENOS | G126: SOLICITUD DE INFORMACIÓN Y DOCUMENTOS | H126: SOLICITUD DE INFORMACIÓN HIDROMETEOROLÓGICA | I126: NO | J126: GRUPO DE ATENCIÓN AL CIUDADANO | K126: 44123 | L126: CORREO ELECTRÓNICO | N126: =IFERROR(WORKDAY(C126,T126,DiasNOLaborables),"") -> 44137 | O126: =+IF(C126="","",IF(K126="","SIN RESPUESTA",(IF(K126<=N126,"A TIEMPO","FUERA DE TIEMPO")))) -> A TIEMPO | P126: =IF(K126="","",NETWORKDAYS(C126+1,K126,DiasNOLaborables)) -> 10 | T126: 20
A127: 116 | B127: 20209050089492 | C127: 44107 | D127: CIUDADANO | E127: MASCULINO | F127: MODULO CONTACTENOS | G127: SOLICITUD DE INFORMACIÓN Y DOCUMENTOS | H127: SOLICITUD DE INFORMACIÓN HIDROMETEOROLÓGICA | I127: NO | J127: GRUPO DE ATENCIÓN AL CIUDADANO | K127: 44123 | L127: CORREO ELECTRÓNICO | N127: =IFERROR(WORKDAY(C127,T127,DiasNOLaborables),"") -> 44137 | O127: =+IF(C127="","",IF(K127="","SIN RESPUESTA",(IF(K127<=N127,"A TIEMPO","FUERA DE TIEMPO")))) -> A TIEMPO | P127: =IF(K127="","",NETWORKDAYS(C127+1,K127,DiasNOLaborables)) -> 10 | T127: 20
A128: 117 | B128: 20209050089502 | C128: 44107 | D128: CIUDADANO | E128: MASCULINO | F128: MODULO CONTACTENOS | G128: SOLICITUD DE INFORMACIÓN Y DOCUMENTOS | H128: SOLICITUD DE INFORMACIÓN HIDROMETEOROLÓGICA | I128: NO | J128: GRUPO DE ATENCIÓN AL CIUDADANO | K128: 44123 | L128: CORREO ELECTRÓNICO | N128: =IFERROR(WORKDAY(C128,T128,DiasNOLaborables),"") -> 44137 | O128: =+IF(C128="","",IF(K128="","SIN RESPUESTA",(IF(K128<=N128,"A TIEMPO","FUERA DE TIEMPO")))) -> A TIEMPO | P128: =IF(K128="","",NETWORKDAYS(C128+1,K128,DiasNOLaborables)) -> 10 | T128: 20
A129: 118 | B129: 20209050089522 | C129: 44107 | D129: CIUDADANO | E129: MASCULINO | F129: MODULO CONTACTENOS | G129: SOLICITUD DE INFORMACIÓN Y DOCUMENTOS | H129: SOLICITUD DE INFORMACIÓN HIDROMETEOROLÓGICA | I129: NO | J129: GRUPO DE ATENCIÓN AL CIUDADANO | K129: 44123 | L129: CORREO ELECTRÓNICO | N129: =IFERROR(WORKDAY(C129,T129,DiasNOLaborables),"") -> 44137 | O129: =+IF(C129="","",IF(K129="","SIN RESPUESTA",(IF(K129<=N129,"A TIEMPO","FUERA DE TIEMPO")))) -> A TIEMPO | P129: =IF(K129="","",NETWORKDAYS(C129+1,K129,DiasNOLaborables)) -> 10 | T129: 20
A130: 119 | B130: 20209050089512 | C130: 44107 | D130: CIUDADANO | E130: MASCULINO | F130: MODULO CONTACTENOS | G130: SOLICITUD DE INFORMACIÓN Y DOCUMENTOS | H130: SOLICITUD DE INFORMACIÓN HIDROMETEOROLÓGICA | I130: NO | J130: GRUPO DE ATENCIÓN AL CIUDADANO | K130: 44123 | L130: CORREO ELECTRÓNICO | N130: =IFERROR(WORKDAY(C130,T130,DiasNOLaborables),"") -> 44137 | O130: =+IF(C130="","",IF(K130="","SIN RESPUESTA",(IF(K130<=N130,"A TIEMPO","FUERA DE TIEMPO")))) -> A TIEMPO | P130: =IF(K130="","",NETWORKDAYS(C130+1,K130,DiasNOLaborables)) -> 10 | T130: 20
A131: 120 | B131: 20209050089532 | C131: 44107 | D131: CIUDADANO | E131: MASCULINO | F131: MODULO CONTACTENOS | G131: SOLICITUD DE INFORMACIÓN Y DOCUMENTOS | H131: SOLICITUD DE INFORMACIÓN HIDROMETEOROLÓGICA | I131: NO | J131: GRUPO DE ATENCIÓN AL CIUDADANO | K131: 44123 | L131: CORREO ELECTRÓNICO | N131: =IFERROR(WORKDAY(C131,T131,DiasNOLaborables),"") -> 44137 | O131: =+IF(C131="","",IF(K131="","SIN RESPUESTA",(IF(K131<=N131,"A TIEMPO","FUERA DE TIEMPO")))) -> A TIEMPO | P131: =IF(K131="","",NETWORKDAYS(C131+1,K131,DiasNOLaborables)) -> 10 | T131: 20
A132: 121 | B132: 20209050089542 | C132: 44107 | D132: CIUDADANO | E132: MASCULINO | F132: MODULO CONTACTENOS | G132: SOLICITUD DE INFORMACIÓN Y DOCUMENTOS | H132: SOLICITUD DE INFORMACIÓN HIDROMETEOROLÓGICA | I132: NO | J132: GRUPO DE ATENCIÓN AL CIUDADANO | K132: 44123 | L132: CORREO ELECTRÓNICO | N132: =IFERROR(WORKDAY(C132,T132,DiasNOLaborables),"") -> 44137 | O132: =+IF(C132="","",IF(K132="","SIN RESPUESTA",(IF(K132<=N132,"A TIEMPO","FUERA DE TIEMPO")))) -> A TIEMPO | P132: =IF(K132="","",NETWORKDAYS(C132+1,K132,DiasNOLaborables)) -> 10 | T132: 20
A133: 122 | B133: 20209050089552 | C133: 44107 | D133: CIUDADANO | E133: MASCULINO | F133: MODULO CONTACTENOS | G133: SOLICITUD DE INFORMACIÓN Y DOCUMENTOS | H133: SOLICITUD DE INFORMACIÓN HIDROMETEOROLÓGICA | I133: NO | J133: GRUPO DE ATENCIÓN AL CIUDADANO | K133: 44123 | L133: CORREO ELECTRÓNICO | N133: =IFERROR(WORKDAY(C133,T133,DiasNOLaborables),"") -> 44137 | O133: =+IF(C133="","",IF(K133="","SIN RESPUESTA",(IF(K133<=N133,"A TIEMPO","FUERA DE TIEMPO")))) -> A TIEMPO | P133: =IF(K133="","",NETWORKDAYS(C133+1,K133,DiasNOLaborables)) -> 10 | T133: 20
A134: 123 | B134: 20209050089562 | C134: 44107 | D134: CIUDADANO | E134: MASCULINO | F134: MODULO CONTACTENOS | G134: SOLICITUD DE INFORMACIÓN Y DOCUMENTOS | H134: SOLICITUD DE INFORMACIÓN HIDROMETEOROLÓGICA | I134: NO | J134: GRUPO DE ATENCIÓN AL CIUDADANO | K134: 44123 | L134: CORREO ELECTRÓNICO | N134: =IFERROR(WORKDAY(C134,T134,DiasNOLaborables),"") -> 44137 | O134: =+IF(C134="","",IF(K134="","SIN RESPUESTA",(IF(K134<=N134,"A TIEMPO","FUERA DE TIEMPO")))) -> A TIEMPO | P134: =IF(K134="","",NETWORKDAYS(C134+1,K134,DiasNOLaborables)) -> 10 | T134: 20
A135: 124 | B135: 20209050089572 | C135: 44107 | D135: CIUDADANO | E135: MASCULINO | F135: MODULO CONTACTENOS | G135: SOLICITUD DE INFORMACIÓN Y DOCUMENTOS | H135: SOLICITUD DE INFORMACIÓN HIDROMETEOROLÓGICA | I135: NO | J135: GRUPO DE ATENCIÓN AL CIUDADANO | K135: 44123 | L135: CORREO ELECTRÓNICO | N135: =IFERROR(WORKDAY(C135,T135,DiasNOLaborables),"") -> 44137 | O135: =+IF(C135="","",IF(K135="","SIN RESPUESTA",(IF(K135<=N135,"A TIEMPO","FUERA DE TIEMPO")))) -> A TIEMPO | P135: =IF(K135="","",NETWORKDAYS(C135+1,K135,DiasNOLaborables)) -> 10 | T135: 20
A136: 125 | B136: 20209050089582 | C136: 44107 | D136: CIUDADANO | E136: MASCULINO | F136: MODULO CONTACTENOS | G136: SOLICITUD DE INFORMACIÓN Y DOCUMENTOS | H136: SOLICITUD DE INFORMACIÓN HIDROMETEOROLÓGICA | I136: NO | J136: GRUPO DE ATENCIÓN AL CIUDADANO | K136: 44123 | L136: CORREO ELECTRÓNICO | N136: =IFERROR(WORKDAY(C136,T136,DiasNOLaborables),"") -> 44137 | O136: =+IF(C136="","",IF(K136="","SIN RESPUESTA",(IF(K136<=N136,"A TIEMPO","FUERA DE TIEMPO")))) -> A TIEMPO | P136: =IF(K136="","",NETWORKDAYS(C136+1,K136,DiasNOLaborables)) -> 10 | T136: 20
A137: 126 | B137: 20209050089662 | C137: 44108 | D137: CIUDADANO | E137: FEMENINO | F137: MODULO CONTACTENOS | G137: SOLICITUD DE INFORMACIÓN Y DOCUMENTOS | H137: SOLICITUD DE INFORMACIÓN HIDROMETEOROLÓGICA | I137: NO | J137: GRUPO DE ATENCIÓN AL CIUDADANO | K137: 44123 | L137: CORREO ELECTRÓNICO | N137: =IFERROR(WORKDAY(C137,T137,DiasNOLaborables),"") -> 44137 | O137: =+IF(C137="","",IF(K137="","SIN RESPUESTA",(IF(K137<=N137,"A TIEMPO","FUERA DE TIEMPO")))) -> A TIEMPO | P137: =IF(K137="","",NETWORKDAYS(C137+1,K137,DiasNOLaborables)) -> 10 | T137: 20
A138: 127 | B138: 20209050089762 | C138: 44108 | D138: ACADEMIA | E138: FEMENINO | F138: MODULO CONTACTENOS | G138: SOLICITUD DE INFORMACIÓN Y DOCUMENTOS | H138: SOLICITUD DE INFORMACIÓN HIDROMETEOROLÓGICA | I138: NO | J138: GRUPO DE ATENCIÓN AL CIUDADANO | K138: 44123 | L138: CORREO ELECTRÓNICO | N138: =IFERROR(WORKDAY(C138,T138,DiasNOLaborables),"") -> 44137 | O138: =+IF(C138="","",IF(K138="","SIN RESPUESTA",(IF(K138<=N138,"A TIEMPO","FUERA DE TIEMPO")))) -> A TIEMPO | P138: =IF(K138="","",NETWORKDAYS(C138+1,K138,DiasNOLaborables)) -> 10 | T138: 20
A139: 128 | B139: 20209050089782 | C139: 44108 | D139: ACADEMIA | E139: FEMENINO | F139: MODULO CONTACTENOS | G139: SOLICITUD DE INFORMACIÓN Y DOCUMENTOS | H139: SOLICITUD DE INFORMACIÓN HIDROMETEOROLÓGICA | I139: NO | J139: GRUPO DE ATENCIÓN AL CIUDADANO | K139: 44123 | L139: CORREO ELECTRÓNICO | N139: =IFERROR(WORKDAY(C139,T139,DiasNOLaborables),"") -> 44137 | O139: =+IF(C139="","",IF(K139="","SIN RESPUESTA",(IF(K139<=N139,"A TIEMPO","FUERA DE TIEMPO")))) -> A TIEMPO | P139: =IF(K139="","",NETWORKDAYS(C139+1,K139,DiasNOLaborables)) -> 10 | T139: 20
A140: 129 | B140: 20209050089812 | C140: 44108 | D140: CIUDADANO | E140: MASCULINO | F140: MODULO CONTACTENOS | G140: SOLICITUD DE INFORMACIÓN Y DOCUMENTOS | H140: SOLICITUD DE INFORMACIÓN HIDROMETEOROLÓGICA | I140: NO | J140: GRUPO DE ATENCIÓN AL CIUDADANO | K140: 44123 | L140: CORREO ELECTRÓNICO | N140: =IFERROR(WORKDAY(C140,T140,DiasNOLaborables),"") -> 44137 | O140: =+IF(C140="","",IF(K140="","SIN RESPUESTA",(IF(K140<=N140,"A TIEMPO","FUERA DE TIEMPO")))) -> A TIEMPO | P140: =IF(K140="","",NETWORKDAYS(C140+1,K140,DiasNOLaborables)) -> 10 | T140: 20
A141: 130 | B141: 20209050089622 | C141: 44108 | D141: ACADEMIA | E141: FEMENINO | F141: MODULO CONTACTENOS | G141: SOLICITUD DE INFORMACIÓN Y DOCUMENTOS | H141: SOLICITUD DE INFORMACIÓN HIDROMETEOROLÓGICA | I141: NO | J141: GRUPO DE ATENCIÓN AL CIUDADANO | K141: 44123 | L141: CORREO ELECTRÓNICO | N141: =IFERROR(WORKDAY(C141,T141,DiasNOLaborables),"") -> 44137 | O141: =+IF(C141="","",IF(K141="","SIN RESPUESTA",(IF(K141<=N141,"A TIEMPO","FUERA DE TIEMPO")))) -> A TIEMPO | P141: =IF(K141="","",NETWORKDAYS(C141+1,K141,DiasNOLaborables)) -> 10 | T141: 20
A142: =IF(B141<>"",A141+1,"") -> 131 | B142: 20209050089632 | C142: 44108 | D142: ACADEMIA | E142: FEMENINO | F142: MODULO CONTACTENOS | G142: SOLICITUD DE INFORMACIÓN Y DOCUMENTOS | H142: SOLICITUD DE INFORMACIÓN HIDROMETEOROLÓGICA | I142: NO | J142: GRUPO DE ATENCIÓN AL CIUDADANO | K142: 44123 | L142: CORREO ELECTRÓNICO | N142: =IFERROR(WORKDAY(C142,T142,DiasNOLaborables),"") -> 44137 | O142: =+IF(C142="","",IF(K142="","SIN RESPUESTA",(IF(K142<=N142,"A TIEMPO","FUERA DE TIEMPO")))) -> A TIEMPO | P142: =IF(K142="","",NETWORKDAYS(C142+1,K142,DiasNOLaborables)) -> 10 | T142: 20
A143: 132 | B143: 20209050089642 | C143: 44108 | D143: ACADEMIA | E143: FEMENINO | F143: MODULO CONTACTENOS | G143: SOLICITUD DE INFORMACIÓN Y DOCUMENTOS | H143: SOLICITUD DE INFORMACIÓN HIDROMETEOROLÓGICA | I143: NO | J143: GRUPO DE ATENCIÓN AL CIUDADANO | K143: 44123 | L143: CORREO ELECTRÓNICO | N143: =IFERROR(WORKDAY(C143,T143,DiasNOLaborables),"") -> 44137 | O143: =+IF(C143="","",IF(K143="","SIN RESPUESTA",(IF(K143<=N143,"A TIEMPO","FUERA DE TIEMPO")))) -> A TIEMPO | P143: =IF(K143="","",NETWORKDAYS(C143+1,K143,DiasNOLaborables)) -> 10 | T143: 20
A144: 133 | B144: 20209050089652 | C144: 44108 | D144: ACADEMIA | E144: FEMENINO | F144: MODULO CONTACTENOS | G144: SOLICITUD DE INFORMACIÓN Y DOCUMENTOS | H144: SOLICITUD DE INFORMACIÓN HIDROMETEOROLÓGICA | I144: NO | J144: GRUPO DE ATENCIÓN AL CIUDADANO | K144: 44123 | L144: CORREO ELECTRÓNICO | N144: =IFERROR(WORKDAY(C144,T144,DiasNOLaborables),"") -> 44137 | O144: =+IF(C144="","",IF(K144="","SIN RESPUESTA",(IF(K144<=N144,"A TIEMPO","FUERA DE TIEMPO")))) -> A TIEMPO | P144: =IF(K144="","",NETWORKDAYS(C144+1,K144,DiasNOLaborables)) -> 10 | T144: 20
A145: 134 | B145: 20209050090142 | C145: 44108 | D145: CIUDADANO | E145: FEMENINO | F145: CORREO ELECTRÓNICO | G145: SOLICITUD DE INFORMACIÓN Y DOCUMENTOS | H145: SOLICITUD DE INFORMACIÓN HIDROMETEOROLÓGICA | I145: NO | J145: GRUPO DE ATENCIÓN AL CIUDADANO | K145: 44113 | L145: CORREO ELECTRÓNICO | N145: =IFERROR(WORKDAY(C145,T145,DiasNOLaborables),"") -> 44137 | O145: =+IF(C145="","",IF(K145="","SIN RESPUESTA",(IF(K145<=N145,"A TIEMPO","FUERA DE TIEMPO")))) -> A TIEMPO | P145: =IF(K145="","",NETWORKDAYS(C145+1,K145,DiasNOLaborables)) -> 5 | T145: 20
A146: 135 | B146: 20209050089732 | C146: 44108 | D146: CIUDADANO | E146: MASCULINO | F146: MODULO CONTACTENOS | G146: SOLICITUD DE INFORMACIÓN Y DOCUMENTOS | H146: ADMINISTRATIVA | I146: SI | J146: OFICINA ASESORA JURÍDICA | K146: 44111 | L146: CORREO ELECTRÓNICO | N146: =IFERROR(WORKDAY(C146,T146,DiasNOLaborables),"") -> 44137 | O146: =+IF(C146="","",IF(K146="","SIN RESPUESTA",(IF(K146<=N146,"A TIEMPO","FUERA DE TIEMPO")))) -> A TIEMPO | P146: =IF(K146="","",NETWORKDAYS(C146+1,K146,DiasNOLaborables)) -> 3 | T146: 20
A147: 136 | B147: 20209050089692 | C147: 44108 | D147: CIUDADANO | E147: FEMENINO | F147: MODULO CONTACTENOS | G147: SOLICITUD DE INFORMACIÓN Y DOCUMENTOS | H147: OPERACIÓN DE REDES | I147: SI | J147: SUBDIRECCIÓN DE HIDROLOGÍA | K147: 44113 | L147: CORREO ELECTRÓNICO | N147: =IFERROR(WORKDAY(C147,T147,DiasNOLaborables),"") -> 44137 | O147: =+IF(C147="","",IF(K147="","SIN RESPUESTA",(IF(K147<=N147,"A TIEMPO","FUERA DE TIEMPO")))) -> A TIEMPO | P147: =IF(K147="","",NETWORKDAYS(C147+1,K147,DiasNOLaborables)) -> 5 | T147: 20
A148: 137 | B148: 20209050089792 | C148: 44108 | D148: FUNCIONARIO IDEAM | E148: FEMENINO | F148: MODULO CONTACTENOS | G148: SOLICITUD DE INFORMACIÓN Y DOCUMENTOS | H148: ADMINISTRATIVA | I148: SI | J148: GRUPO DE ADMINISTRACIÓN Y DESARROLLO DEL TALENTO HUMANO | K148: 44120 | L148: CORREO ELECTRÓNICO | N148: =IFERROR(WORKDAY(C148,T148,DiasNOLaborables),"") -> 44137 | O148: =+IF(C148="","",IF(K148="","SIN RESPUESTA",(IF(K148<=N148,"A TIEMPO","FUERA DE TIEMPO")))) -> A TIEMPO | P148: =IF(K148="","",NETWORKDAYS(C148+1,K148,DiasNOLaborables)) -> 9 | T148: 20
A149: 138 | B149: 20209050089802 | C149: 44108 | D149: FUNCIONARIO IDEAM | E149: FEMENINO | F149: MODULO CONTACTENOS | G149: SOLICITUD DE INFORMACIÓN Y DOCUMENTOS | H149: ADMINISTRATIVA | I149: SI | J149: GRUPO DE ADMINISTRACIÓN Y DESARROLLO DEL TALENTO HUMANO | K149: 44112 | L149: CORREO ELECTRÓNICO | N149: =IFERROR(WORKDAY(C149,T149,DiasNOLaborables),"") -> 44137 | O149: =+IF(C149="","",IF(K149="","SIN RESPUESTA",(IF(K149<=N149,"A TIEMPO","FUERA DE TIEMPO")))) -> A TIEMPO | P149: =IF(K149="","",NETWORKDAYS(C149+1,K149,DiasNOLaborables)) -> 4 | T149: 20
A150: 139 | B150: 20209050089862 | C150: 44109 | D150: CIUDADANO | E150: MASCULINO | F150: MODULO CONTACTENOS | G150: SOLICITUD DE INFORMACIÓN Y DOCUMENTOS | H150: ADMINISTRATIVA | I150: SI | J150: GRUPO DE TESORERÍA | K150: 44110 | L150: CORREO ELECTRÓNICO | N150: =IFERROR(WORKDAY(C150,T150,DiasNOLaborables),"") -> 44138 | O150: =+IF(C150="","",IF(K150="","SIN RESPUESTA",(IF(K150<=N150,"A TIEMPO","FUERA DE TIEMPO")))) -> A TIEMPO | P150: =IF(K150="","",NETWORKDAYS(C150+1,K150,DiasNOLaborables)) -> 1 | T150: 20
A151: 140 | B151: 20209050090202 | C151: 44109 | D151: CIUDADANO | E151: FEMENINO | F151: MODULO CONTACTENOS | G151: SOLICITUD DE INFORMACIÓN Y DOCUMENTOS | H151: SUELOS Y TIERRAS | I151: SI | J151: SUBDIRECCIÓN DE ECOSISTEMAS E INFORMACIÓN AMBIENTAL | K151: 44117 | L151: CORREO ELECTRÓNICO | N151: =IFERROR(WORKDAY(C151,T151,DiasNOLaborables),"") -> 44138 | O151: =+IF(C151="","",IF(K151="","SIN RESPUESTA",(IF(K151<=N151,"A TIEMPO","FUERA DE TIEMPO")))) -> A TIEMPO | P151: =IF(K151="","",NETWORKDAYS(C151+1,K151,DiasNOLaborables)) -> 5 | T151: 20
A152: 141 | B152: 20209050090212 | C152: 44109 | D152: CIUDADANO | E152: FEMENINO | F152: MODULO CONTACTENOS | G152: SOLICITUD DE INFORMACIÓN Y DOCUMENTOS | H152: SUELOS Y TIERRAS | I152: SI | J152: SUBDIRECCIÓN DE ECOSISTEMAS E INFORMACIÓN AMBIENTAL | K152: 44117 | L152: CORREO ELECTRÓNICO | N152: =IFERROR(WORKDAY(C152,T152,DiasNOLaborables),"") -> 44138 | O152: =+IF(C152="","",IF(K152="","SIN RESPUESTA",(IF(K152<=N152,"A TIEMPO","FUERA DE TIEMPO")))) -> A TIEMPO | P152: =IF(K152="","",NETWORKDAYS(C152+1,K152,DiasNOLaborables)) -> 5 | T152: 20
A153: 142 | B153: 20209050090312 | C153: 44109 | D153: CIUDADANO | E153: MASCULINO | F153: MODULO CONTACTENOS | G153: SOLICITUD DE INFORMACIÓN Y DOCUMENTOS | H153: ACREDITACIÓN DE LABORATORIOS | I153: SI | J153: SUBDIRECCIÓN DE ESTUDIOS AMBIENTALES | K153: 44119 | L153: CORREO ELECTRÓNICO | N153: =IFERROR(WORKDAY(C153,T153,DiasNOLaborables),"") -> 44138 | O153: =+IF(C153="","",IF(K153="","SIN RESPUESTA",(IF(K153<=N153,"A TIEMPO","FUERA DE TIEMPO")))) -> A TIEMPO | P153: =IF(K153="","",NETWORKDAYS(C153+1,K153,DiasNOLaborables)) -> 7 | T153: 20
A154: 143 | B154: 20209050090292 | C154: 44109 | D154: CIUDADANO | E154: FEMENINO | F154: MODULO CONTACTENOS | G154: SOLICITUD DE INFORMACIÓN Y DOCUMENTOS | H154: OPERACIÓN DE REDES | I154: SI | J154: SUBDIRECCIÓN DE ECOSISTEMAS E INFORMACIÓN AMBIENTAL | K154: 44111 | L154: CORREO ELECTRÓNICO | N154: =IFERROR(WORKDAY(C154,T154,DiasNOLaborables),"") -> 44138 | O154: =+IF(C154="","",IF(K154="","SIN RESPUESTA",(IF(K154<=N154,"A TIEMPO","FUERA DE TIEMPO")))) -> A TIEMPO | P154: =IF(K154="","",NETWORKDAYS(C154+1,K154,DiasNOLaborables)) -> 2 | T154: 20
A155: 144 | B155: 20209050090382 | C155: 44109 | D155: CIUDADANO | E155: FEMENINO | F155: MODULO CONTACTENOS | G155: SOLICITUD DE INFORMACIÓN Y DOCUMENTOS | H155: ADMINISTRATIVA | I155: SI | J155: GRUPO DE ADMINISTRACIÓN Y DESARROLLO DEL TALENTO HUMANO | K155: 44123 | L155: CORREO ELECTRÓNICO | N155: =IFERROR(WORKDAY(C155,T155,DiasNOLaborables),"") -> 44138 | O155: =+IF(C155="","",IF(K155="","SIN RESPUESTA",(IF(K155<=N155,"A TIEMPO","FUERA DE TIEMPO")))) -> A TIEMPO | P155: =IF(K155="","",NETWORKDAYS(C155+1,K155,DiasNOLaborables)) -> 9 | T155: 20
A156: 145 | B156: 20209050090392 | C156: 44109 | D156: CIUDADANO | E156: FEMENINO | F156: MODULO CONTACTENOS | G156: SOLICITUD DE INFORMACIÓN Y DOCUMENTOS | H156: ADMINISTRATIVA | I156: SI | J156: GRUPO DE ADMINISTRACIÓN Y DESARROLLO DEL TALENTO HUMANO | K156: 44123 | L156: CORREO ELECTRÓNICO | N156: =IFERROR(WORKDAY(C156,T156,DiasNOLaborables),"") -> 44138 | O156: =+IF(C156="","",IF(K156="","SIN RESPUESTA",(IF(K156<=N156,"A TIEMPO","FUERA DE TIEMPO")))) -> A TIEMPO | P156: =IF(K156="","",NETWORKDAYS(C156+1,K156,DiasNOLaborables)) -> 9 | T156: 20
A157: 146 | B157: 20209050090402 | C157: 44109 | D157: CIUDADANO | E157: MASCULINO | F157: MODULO CONTACTENOS | G157: SOLICITUD DE INFORMACIÓN Y DOCUMENTOS | H157: SIRH | I157: SI | J157: SUBDIRECCIÓN DE HIDROLOGÍA | K157: 44112 | L157: CORREO ELECTRÓNICO | N157: =IFERROR(WORKDAY(C157,T157,DiasNOLaborables),"") -> 44138 | O157: =+IF(C157="","",IF(K157="","SIN RESPUESTA",(IF(K157<=N157,"A TIEMPO","FUERA DE TIEMPO")))) -> A TIEMPO | P157: =IF(K157="","",NETWORKDAYS(C157+1,K157,DiasNOLaborables)) -> 3 | T157: 20
A158: 147 | B158: 20209050090462 | C158: 44109 | D158: FUNCIONARIO IDEAM | E158: MASCULINO | F158: MODULO CONTACTENOS | G158: SOLICITUD DE INFORMACIÓN Y DOCUMENTOS | H158: ADMINISTRATIVA | I158: SI | J158: GRUPO DE TESORERÍA | K158: 44110 | L158: CORREO ELECTRÓNICO | N158: =IFERROR(WORKDAY(C158,T158,DiasNOLaborables),"") -> 44138 | O158: =+IF(C158="","",IF(K158="","SIN RESPUESTA",(IF(K158<=N158,"A TIEMPO","FUERA DE TIEMPO")))) -> A TIEMPO | P158: =IF(K158="","",NETWORKDAYS(C158+1,K158,DiasNOLaborables)) -> 1 | T158: 20
A159: 148 | B159: 20209050089932 | C159: 44109 | D159: EMPRESA PRIVADA | E159: FEMENINO | F159: CORREO ELECTRÓNICO | G159: SOLICITUD DE INFORMACIÓN Y DOCUMENTOS | H159: REGISTROS AMBIENTALES | I159: SI | J159: SUBDIRECCIÓN DE ESTUDIOS AMBIENTALES | K159: 44109 | L159: CORREO ELECTRÓNICO | N159: =IFERROR(WORKDAY(C159,T159,DiasNOLaborables),"") -> 44138 | O159: =+IF(C159="","",IF(K159="","SIN RESPUESTA",(IF(K159<=N159,"A TIEMPO","FUERA DE TIEMPO")))) -> A TIEMPO | P159: =IF(K159="","",NETWORKDAYS(C159+1,K159,DiasNOLaborables)) -> -2 | T159: 20
A160: 149 | B160: 20209050090002 | C160: 44109 | D160: CIUDADANO | E160: MASCULINO | F160: CORREO ELECTRÓNICO | G160: SOLICITUD DE INFORMACIÓN Y DOCUMENTOS | H160: SOLICITUD DE INFORMACIÓN HIDROMETEOROLÓGICA | I160: SI | J160: OFICINA DE INFORMÁTICA | K160: 44119 | L160: CORREO ELECTRÓNICO | N160: =IFERROR(WORKDAY(C160,T160,DiasNOLaborables),"") -> 44138 | O160: =+IF(C160="","",IF(K160="","SIN RESPUESTA",(IF(K160<=N160,"A TIEMPO","FUERA DE TIEMPO")))) -> A TIEMPO | P160: =IF(K160="","",NETWORKDAYS(C160+1,K160,DiasNOLaborables)) -> 7 | T160: 20
A161: 150 | B161: 20209050090032 | C161: 44109 | D161: CIUDADANO | E161: MASCULINO | F161: CORREO ELECTRÓNICO | G161: SOLICITUD DE INFORMACIÓN Y DOCUMENTOS | H161: SOLICITUD DE INFORMACIÓN HIDROMETEOROLÓGICA | I161: SI | J161: SUBDIRECCIÓN DE ECOSISTEMAS E INFORMACIÓN AMBIENTAL | K161: 44127 | L161: CORREO ELECTRÓNICO | N161: =IFERROR(WORKDAY(C161,T161,DiasNOLaborables),"") -> 44138 | O161: =+IF(C161="","",IF(K161="","SIN RESPUESTA",(IF(K161<=N161,"A TIEMPO","FUERA DE TIEMPO")))) -> A TIEMPO | P161: =IF(K161="","",NETWORKDAYS(C161+1,K161,DiasNOLaborables)) -> 13 | T161: 20
A162: 151 | B162: 20209050090042 | C162: 44109 | D162: ACADEMIA | E162: FEMENINO | F162: CORREO ELECTRÓNICO | G162: SOLICITUD DE INFORMACIÓN Y DOCUMENTOS | H162: SOLICITUD DE INFORMACIÓN HIDROMETEOROLÓGICA | I162: SI | J162: SUBDIRECCIÓN DE ESTUDIOS AMBIENTALES | K162: 44119 | L162: CORREO ELECTRÓNICO | N162: =IFERROR(WORKDAY(C162,T162,DiasNOLaborables),"") -> 44138 | O162: =+IF(C162="","",IF(K162="","SIN RESPUESTA",(IF(K162<=N162,"A TIEMPO","FUERA DE TIEMPO")))) -> A TIEMPO | P162: =IF(K162="","",NETWORKDAYS(C162+1,K162,DiasNOLaborables)) -> 7 | T162: 20
A163: 152 | B163: 20209050090052 | C163: 44109 | D163: EMPRESA PRIVADA | E163: FEMENINO | F163: CORREO ELECTRÓNICO | G163: CERTIFICACIONES DE TIEMPO, CLIMA Y EVENTOS HIDROLÓGICOS | H163: CERTIFICACIONES DE TIEMPO Y CLIMA | I163: SI | J163: SUBDIRECCIÓN DE METEOROLOGÍA | K163: 44110 | L163: CORREO ELECTRÓNICO | N163: =IFERROR(WORKDAY(C163,T163,DiasNOLaborables),"") -> 44159 | O163: =+IF(C163="","",IF(K163="","SIN RESPUESTA",(IF(K163<=N163,"A TIEMPO","FUERA DE TIEMPO")))) -> A TIEMPO | P163: =IF(K163="","",NETWORKDAYS(C163+1,K163,DiasNOLaborables)) -> 1 | T163: 35
A164: 153 | B164: 20209050090102 | C164: 44109 | D164: CIUDADANO | E164: FEMENINO | F164: CORREO ELECTRÓNICO | G164: SOLICITUD DE INFORMACIÓN Y DOCUMENTOS | H164: SOLICITUD DE INFORMACIÓN HIDROMETEOROLÓGICA | I164: SI | J164: SUBDIRECCIÓN DE ECOSISTEMAS E INFORMACIÓN AMBIENTAL | K164: 44118 | L164: CORREO ELECTRÓNICO | N164: =IFERROR(WORKDAY(C164,T164,DiasNOLaborables),"") -> 44138 | O164: =+IF(C164="","",IF(K164="","SIN RESPUESTA",(IF(K164<=N164,"A TIEMPO","FUERA DE TIEMPO")))) -> A TIEMPO | P164: =IF(K164="","",NETWORKDAYS(C164+1,K164,DiasNOLaborables)) -> 6 | T164: 20
A165: 154 | B165: 20209050090152 | C165: 44109 | D165: ACADEMIA | E165: MASCULINO | F165: CORREO ELECTRÓNICO | G165: SOLICITUD DE INFORMACIÓN Y DOCUMENTOS | H165: SOLICITUD DE INFORMACIÓN HIDROMETEOROLÓGICA | I165: SI | J165: OFICINA DE INFORMÁTICA | K165: 44123 | L165: CORREO ELECTRÓNICO | N165: =IFERROR(WORKDAY(C165,T165,DiasNOLaborables),"") -> 44138 | O165: =+IF(C165="","",IF(K165="","SIN RESPUESTA",(IF(K165<=N165,"A TIEMPO","FUERA DE TIEMPO")))) -> A TIEMPO | P165: =IF(K165="","",NETWORKDAYS(C165+1,K165,DiasNOLaborables)) -> 9 | T165: =IFERROR(VLOOKUP(G165,$AB$50:$AC$63,2),"") -> 20
A166: 155 | B166: 20209050090162 | C166: 44109 | D166: CIUDADANO | E166: FEMENINO | F166: CORREO ELECTRÓNICO | G166: SOLICITUD DE INFORMACIÓN Y DOCUMENTOS | H166: SOLICITUD DE INFORMACIÓN HIDROMETEOROLÓGICA | I166: SI | J166: SUBDIRECCIÓN DE ECOSISTEMAS E INFORMACIÓN AMBIENTAL | K166: 44117 | L166: CORREO ELECTRÓNICO | N166: =IFERROR(WORKDAY(C166,T166,DiasNOLaborables),"") -> 44138 | O166: =+IF(C166="","",IF(K166="","SIN RESPUESTA",(IF(K166<=N166,"A TIEMPO","FUERA DE TIEMPO")))) -> A TIEMPO | P166: =IF(K166="","",NETWORKDAYS(C166+1,K166,DiasNOLaborables)) -> 5 | T166: 20
A167: 156 | B167: 20209050090652 | C167: 44109 | D167: EMPRESA PRIVADA | E167: FEMENINO | F167: CORREO ELECTRÓNICO | G167: CERTIFICACIONES DE TIEMPO, CLIMA Y EVENTOS HIDROLÓGICOS | H167: CERTIFICACIONES DE TIEMPO Y CLIMA | I167: SI | J167: SUBDIRECCIÓN DE METEOROLOGÍA | K167: 44125 | L167: CORREO ELECTRÓNICO | N167: =IFERROR(WORKDAY(C167,T167,DiasNOLaborables),"") -> 44159 | O167: =+IF(C167="","",IF(K167="","SIN RESPUESTA",(IF(K167<=N167,"A TIEMPO","FUERA DE TIEMPO")))) -> A TIEMPO | P167: =IF(K167="","",NETWORKDAYS(C167+1,K167,DiasNOLaborables)) -> 11 | T167: 35
A168: 157 | B168: 20209050090662 | C168: 44109 | D168: EMPRESA PRIVADA | E168: FEMENINO | F168: CORREO ELECTRÓNICO | G168: CERTIFICACIONES DE TIEMPO, CLIMA Y EVENTOS HIDROLÓGICOS | H168: CERTIFICACIONES DE TIEMPO Y CLIMA | I168: SI | J168: SUBDIRECCIÓN DE METEOROLOGÍA | K168: 44125 | L168: CORREO ELECTRÓNICO | N168: =IFERROR(WORKDAY(C168,T168,DiasNOLaborables),"") -> 44159 | O168: =+IF(C168="","",IF(K168="","SIN RESPUESTA",(IF(K168<=N168,"A TIEMPO","FUERA DE TIEMPO")))) -> A TIEMPO | P168: =IF(K168="","",NETWORKDAYS(C168+1,K168,DiasNOLaborables)) -> 11 | T168: 35
A169: 158 | B169: 20209050090672 | C169: 44109 | D169: CIUDADANO | E169: MASCULINO | F169: CORREO ELECTRÓNICO | G169: SOLICITUD DE INFORMACIÓN Y DOCUMENTOS | H169: SOLICITUD DE INFORMACIÓN HIDROMETEOROLÓGICA | I169: SI | J169: SUBDIRECCIÓN DE HIDROLOGÍA | K169: 44125 | L169: CORREO ELECTRÓNICO | N169: =IFERROR(WORKDAY(C169,T169,DiasNOLaborables),"") -> 44138 | O169: =+IF(C169="","",IF(K169="","SIN RESPUESTA",(IF(K169<=N169,"A TIEMPO","FUERA DE TIEMPO")))) -> A TIEMPO | P169: =IF(K169="","",NETWORKDAYS(C169+1,K169,DiasNOLaborables)) -> 11 | Q169: =IF(NETWORKDAYS(N169+1,K169,DiasNOLaborables)<=0,"",NETWORKDAYS(N169+1,K169,DiasNOLaborables)) ->  | T169: 20
A170: 159 | B170: 20209050090712 | C170: 44109 | D170: CIUDADANO | E170: MASCULINO | F170: CORREO ELECTRÓNICO | G170: SOLICITUD DE INFORMACIÓN Y DOCUMENTOS | H170: SOLICITUD DE INFORMACIÓN HIDROMETEOROLÓGICA | I170: SI | J170: SUBDIRECCIÓN DE METEOROLOGÍA | K170: 44130 | L170: CORREO ELECTRÓNICO | N170: =IFERROR(WORKDAY(C170,T170,DiasNOLaborables),"") -> 44138 | O170: =+IF(C170="","",IF(K170="","SIN RESPUESTA",(IF(K170<=N170,"A TIEMPO","FUERA DE TIEMPO")))) -> A TIEMPO | P170: =IF(K170="","",NETWORKDAYS(C170+1,K170,DiasNOLaborables)) -> 14 | T170: 20
A171: 160 | B171: 20209050090752 | C171: 44109 | D171: CIUDADANO | E171: MASCULINO | F171: CORREO ELECTRÓNICO | G171: SOLICITUD DE INFORMACIÓN Y DOCUMENTOS | H171: SOLICITUD DE INFORMACIÓN HIDROMETEOROLÓGICA | I171: SI | J171: SUBDIRECCIÓN DE ESTUDIOS AMBIENTALES | K171: 44117 | L171: CORREO ELECTRÓNICO | N171: =IFERROR(WORKDAY(C171,T171,DiasNOLaborables),"") -> 44138 | O171: =+IF(C171="","",IF(K171="","SIN RESPUESTA",(IF(K171<=N171,"A TIEMPO","FUERA DE TIEMPO")))) -> A TIEMPO | P171: =IF(K171="","",NETWORKDAYS(C171+1,K171,DiasNOLaborables)) -> 5 | T171: 20
A172: 161 | B172: 20209050090792 | C172: 44109 | D172: EMPRESA PRIVADA | E172: FEMENINO | F172: CORREO ELECTRÓNICO | G172: CERTIFICACIONES DE TIEMPO, CLIMA Y EVENTOS HIDROLÓGICOS | H172: CERTIFICACIONES DE TIEMPO Y CLIMA | I172: SI | J172: SUBDIRECCIÓN DE METEOROLOGÍA | K172: 44112 | L172: CORREO ELECTRÓNICO | N172: =IFERROR(WORKDAY(C172,T172,DiasNOLaborables),"") -> 44159 | O172: =+IF(C172="","",IF(K172="","SIN RESPUESTA",(IF(K172<=N172,"A TIEMPO","FUERA DE TIEMPO")))) -> A TIEMPO | P172: =IF(K172="","",NETWORKDAYS(C172+1,K172,DiasNOLaborables)) -> 3 | T172: 35
A173: 162 | B173: 20209050090802 | C173: 44109 | D173: EMPRESA PRIVADA | E173: FEMENINO | F173: CORREO ELECTRÓNICO | G173: CERTIFICACIONES DE TIEMPO, CLIMA Y EVENTOS HIDROLÓGICOS | H173: CERTIFICACIONES DE TIEMPO Y CLIMA | I173: SI | J173: SUBDIRECCIÓN DE METEOROLOGÍA | K173: 44126 | L173: CORREO ELECTRÓNICO | N173: =IFERROR(WORKDAY(C173,T173,DiasNOLaborables),"") -> 44159 | O173: =+IF(C173="","",IF(K173="","SIN RESPUESTA",(IF(K173<=N173,"A TIEMPO","FUERA DE TIEMPO")))) -> A TIEMPO | P173: =IF(K173="","",NETWORKDAYS(C173+1,K173,DiasNOLaborables)) -> 12 | T173: 35
A174: 163 | B174: 20209050090482 | C174: 44109 | D174: CIUDADANO | E174: FEMENINO | F174: MODULO CONTACTENOS | G174: SOLICITUD DE INFORMACIÓN Y DOCUMENTOS | H174: SOLICITUD DE INFORMACIÓN HIDROMETEOROLÓGICA | I174: SI | J174: OFICINA DE INFORMÁTICA | K174: 44120 | L174: CORREO ELECTRÓNICO | N174: =IFERROR(WORKDAY(C174,T174,DiasNOLaborables),"") -> 44138 | O174: =+IF(C174="","",IF(K174="","SIN RESPUESTA",(IF(K174<=N174,"A TIEMPO","FUERA DE TIEMPO")))) -> A TIEMPO | P174: =IF(K174="","",NETWORKDAYS(C174+1,K174,DiasNOLaborables)) -> 8 | T174: 20
A175: 164 | B175: 20209050090362 | C175: 44109 | D175: ACADEMIA | E175: MASCULINO | F175: CORREO ELECTRÓNICO | G175: SOLICITUD DE INFORMACIÓN Y DOCUMENTOS | H175: SOLICITUD DE INFORMACIÓN HIDROMETEOROLÓGICA | I175: NO | J175: GRUPO DE ATENCIÓN AL CIUDADANO | K175: 44117 | L175: CORREO ELECTRÓNICO | N175: =IFERROR(WORKDAY(C175,T175,DiasNOLaborables),"") -> 44138 | O175: =+IF(C175="","",IF(K175="","SIN RESPUESTA",(IF(K175<=N175,"A TIEMPO","FUERA DE TIEMPO")))) -> A TIEMPO | P175: =IF(K175="","",NETWORKDAYS(C175+1,K175,DiasNOLaborables)) -> 5 | T175: 20
A176: 165 | B176: 20209050090412 | C176: 44109 | D176: CIUDADANO | E176: MASCULINO | F176: CORREO ELECTRÓNICO | G176: SOLICITUD DE INFORMACIÓN Y DOCUMENTOS | H176: SOLICITUD DE INFORMACIÓN HIDROMETEOROLÓGICA | I176: NO | J176: GRUPO DE ATENCIÓN AL CIUDADANO | K176: 44114 | L176: CORREO ELECTRÓNICO | N176: =IFERROR(WORKDAY(C176,T176,DiasNOLaborables),"") -> 44138 | O176: =+IF(C176="","",IF(K176="","SIN RESPUESTA",(IF(K176<=N176,"A TIEMPO","FUERA DE TIEMPO")))) -> A TIEMPO | P176: =IF(K176="","",NETWORKDAYS(C176+1,K176,DiasNOLaborables)) -> 4 | T176: 20
A177: 166 | B177: 20209050090422 | C177: 44109 | D177: CIUDADANO | E177: MASCULINO | F177: CORREO ELECTRÓNICO | G177: SOLICITUD DE INFORMACIÓN Y DOCUMENTOS | H177: SOLICITUD DE INFORMACIÓN HIDROMETEOROLÓGICA | I177: NO | J177: GRUPO DE ATENCIÓN AL CIUDADANO | K177: 44116 | L177: CORREO ELECTRÓNICO | N177: =IFERROR(WORKDAY(C177,T177,DiasNOLaborables),"") -> 44138 | O177: =+IF(C177="","",IF(K177="","SIN RESPUESTA",(IF(K177<=N177,"A TIEMPO","FUERA DE TIEMPO")))) -> A TIEMPO | P177: =IF(K177="","",NETWORKDAYS(C177+1,K177,DiasNOLaborables)) -> 4 | T177: 20
A178: =IF(B176<>"",A177+1,"") -> 167 | B178: 20209050091232 | C178: 44109 | D178: CIUDADANO | E178: FEMENINO | F178: CORREO ELECTRÓNICO | G178: SOLICITUD DE INFORMACIÓN Y DOCUMENTOS | H178: SOLICITUD DE INFORMACIÓN HIDROMETEOROLÓGICA | I178: NO | J178: GRUPO DE ATENCIÓN AL CIUDADANO | K178: 44117 | L178: CORREO ELECTRÓNICO | N178: =IFERROR(WORKDAY(C178,T178,DiasNOLaborables),"") -> 44138 | O178: =+IF(C178="","",IF(K178="","SIN RESPUESTA",(IF(K178<=N178,"A TIEMPO","FUERA DE TIEMPO")))) -> A TIEMPO | P178: =IF(K178="","",NETWORKDAYS(C178+1,K178,DiasNOLaborables)) -> 5 | T178: 20
A179: 168 | B179: 20209050090302 | C179: 44109 | D179: CIUDADANO | E179: MASCULINO | F179: CORREO ELECTRÓNICO | G179: SOLICITUD DE INFORMACIÓN Y DOCUMENTOS | H179: SOLICITUD DE INFORMACIÓN HIDROMETEOROLÓGICA | I179: NO | J179: GRUPO DE ATENCIÓN AL CIUDADANO | K179: 44111 | L179: CORREO ELECTRÓNICO | N179: =IFERROR(WORKDAY(C179,T179,DiasNOLaborables),"") -> 44138 | O179: =+IF(C179="","",IF(K179="","SIN RESPUESTA",(IF(K179<=N179,"A TIEMPO","FUERA DE TIEMPO")))) -> A TIEMPO | P179: =IF(K179="","",NETWORKDAYS(C179+1,K179,DiasNOLaborables)) -> 2 | T179: 20
A180: 169 | B180: 20209050091182 | C180: 44109 | D180: ACADEMIA | E180: MASCULINO | F180: CORREO ELECTRÓNICO | G180: SOLICITUD DE INFORMACIÓN Y DOCUMENTOS | H180: SOLICITUD DE INFORMACIÓN HIDROMETEOROLÓGICA | I180: NO | J180: GRUPO DE ATENCIÓN AL CIUDADANO | K180: 44111 | L180: CORREO ELECTRÓNICO | N180: =IFERROR(WORKDAY(C180,T180,DiasNOLaborables),"") -> 44138 | O180: =+IF(C180="","",IF(K180="","SIN RESPUESTA",(IF(K180<=N180,"A TIEMPO","FUERA DE TIEMPO")))) -> A TIEMPO | P180: =IF(K180="","",NETWORKDAYS(C180+1,K180,DiasNOLaborables)) -> 2 | T180: 20
A181: 170 | B181: 20209050091172 | C181: 44109 | D181: ACADEMIA | E181: MASCULINO | F181: CORREO ELECTRÓNICO | G181: SOLICITUD DE INFORMACIÓN Y DOCUMENTOS | H181: SOLICITUD DE INFORMACIÓN HIDROMETEOROLÓGICA | I181: NO | J181: GRUPO DE ATENCIÓN AL CIUDADANO | K181: 44111 | L181: CORREO ELECTRÓNICO | N181: =IFERROR(WORKDAY(C181,T181,DiasNOLaborables),"") -> 44138 | O181: =+IF(C181="","",IF(K181="","SIN RESPUESTA",(IF(K181<=N181,"A TIEMPO","FUERA DE TIEMPO")))) -> A TIEMPO | P181: =IF(K181="","",NETWORKDAYS(C181+1,K181,DiasNOLaborables)) -> 2 | T181: 20
A182: 171 | B182: 20209050091192 | C182: 44109 | D182: ACADEMIA | E182: MASCULINO | F182: CORREO ELECTRÓNICO | G182: SOLICITUD DE INFORMACIÓN Y DOCUMENTOS | H182: SOLICITUD DE INFORMACIÓN HIDROMETEOROLÓGICA | I182: NO | J182: GRUPO DE ATENCIÓN AL CIUDADANO | K182: 44111 | L182: CORREO ELECTRÓNICO | N182: =IFERROR(WORKDAY(C182,T182,DiasNOLaborables),"") -> 44138 | O182: =+IF(C182="","",IF(K182="","SIN RESPUESTA",(IF(K182<=N182,"A TIEMPO","FUERA DE TIEMPO")))) -> A TIEMPO | P182: =IF(K182="","",NETWORKDAYS(C182+1,K182,DiasNOLaborables)) -> 2 | T182: 20
A183: 172 | B183: 20209050090172 | C183: 44109 | D183: CIUDADANO | E183: MASCULINO | F183: CORREO ELECTRÓNICO | G183: SOLICITUD DE INFORMACIÓN Y DOCUMENTOS | H183: SOLICITUD DE INFORMACIÓN HIDROMETEOROLÓGICA | I183: NO | J183: GRUPO DE ATENCIÓN AL CIUDADANO | K183: 44111 | L183: CORREO ELECTRÓNICO | N183: =IFERROR(WORKDAY(C183,T183,DiasNOLaborables),"") -> 44138 | O183: =+IF(C183="","",IF(K183="","SIN RESPUESTA",(IF(K183<=N183,"A TIEMPO","FUERA DE TIEMPO")))) -> A TIEMPO | P183: =IF(K183="","",NETWORKDAYS(C183+1,K183,DiasNOLaborables)) -> 2 | T183: 20
A184: 173 | B184: 20209050090432 | C184: 44109 | D184: CIUDADANO | E184: MASCULINO | F184: CORREO ELECTRÓNICO | G184: SOLICITUD DE INFORMACIÓN Y DOCUMENTOS | H184: SOLICITUD DE INFORMACIÓN HIDROMETEOROLÓGICA | I184: NO | J184: GRUPO DE ATENCIÓN AL CIUDADANO | K184: 44112 | L184: CORREO ELECTRÓNICO | N184: =IFERROR(WORKDAY(C184,T184,DiasNOLaborables),"") -> 44138 | O184: =+IF(C184="","",IF(K184="","SIN RESPUESTA",(IF(K184<=N184,"A TIEMPO","FUERA DE TIEMPO")))) -> A TIEMPO | P184: =IF(K184="","",NETWORKDAYS(C184+1,K184,DiasNOLaborables)) -> 3 | T184: 20
A185: 174 | B185: 20209050090442 | C185: 44109 | D185: CIUDADANO | E185: MASCULINO | F185: CORREO ELECTRÓNICO | G185: SOLICITUD DE INFORMACIÓN Y DOCUMENTOS | H185: SOLICITUD DE INFORMACIÓN HIDROMETEOROLÓGICA | I185: NO | J185: GRUPO DE ATENCIÓN AL CIUDADANO | K185: 44112 | L185: CORREO ELECTRÓNICO | N185: =IFERROR(WORKDAY(C185,T185,DiasNOLaborables),"") -> 44138 | O185: =+IF(C185="","",IF(K185="","SIN RESPUESTA",(IF(K185<=N185,"A TIEMPO","FUERA DE TIEMPO")))) -> A TIEMPO | P185: =IF(K185="","",NETWORKDAYS(C185+1,K185,DiasNOLaborables)) -> 3 | T185: 20
A186: 175 | B186: 20209050091162 | C186: 44109 | D186: CIUDADANO | E186: MASCULINO | F186: CORREO ELECTRÓNICO | G186: SOLICITUD DE INFORMACIÓN Y DOCUMENTOS | H186: SOLICITUD DE INFORMACIÓN HIDROMETEOROLÓGICA | I186: NO | J186: GRUPO DE ATENCIÓN AL CIUDADANO | K186: 44112 | L186: CORREO ELECTRÓNICO | N186: =IFERROR(WORKDAY(C186,T186,DiasNOLaborables),"") -> 44138 | O186: =+IF(C186="","",IF(K186="","SIN RESPUESTA",(IF(K186<=N186,"A TIEMPO","FUERA DE TIEMPO")))) -> A TIEMPO | P186: =IF(K186="","",NETWORKDAYS(C186+1,K186,DiasNOLaborables)) -> 3 | T186: 20
A187: 176 | B187: 20209050091132 | C187: 44109 | D187: CIUDADANO | E187: MASCULINO | F187: CORREO ELECTRÓNICO | G187: SOLICITUD DE INFORMACIÓN Y DOCUMENTOS | H187: SOLICITUD DE INFORMACIÓN HIDROMETEOROLÓGICA | I187: NO | J187: GRUPO DE ATENCIÓN AL CIUDADANO | K187: 44112 | L187: CORREO ELECTRÓNICO | N187: =IFERROR(WORKDAY(C187,T187,DiasNOLaborables),"") -> 44138 | O187: =+IF(C187="","",IF(K187="","SIN RESPUESTA",(IF(K187<=N187,"A TIEMPO","FUERA DE TIEMPO")))) -> A TIEMPO | P187: =IF(K187="","",NETWORKDAYS(C187+1,K187,DiasNOLaborables)) -> 3 | T187: 20
A188: 177 | B188: 20209050090552 | C188: 44109 | D188: ACADEMIA | E188: MASCULINO | F188: CORREO ELECTRÓNICO | G188: SOLICITUD DE INFORMACIÓN Y DOCUMENTOS | H188: SOLICITUD DE INFORMACIÓN HIDROMETEOROLÓGICA | I188: NO | J188: GRUPO DE ATENCIÓN AL CIUDADANO | K188: 44112 | L188: CORREO ELECTRÓNICO | N188: =IFERROR(WORKDAY(C188,T188,DiasNOLaborables),"") -> 44138 | O188: =+IF(C188="","",IF(K188="","SIN RESPUESTA",(IF(K188<=N188,"A TIEMPO","FUERA DE TIEMPO")))) -> A TIEMPO | P188: =IF(K188="","",NETWORKDAYS(C188+1,K188,DiasNOLaborables)) -> 3 | T188: 20
A189: 178 | B189: 20209050090562 | C189: 44109 | D189: ACADEMIA | E189: FEMENINO | F189: CORREO ELECTRÓNICO | G189: SOLICITUD DE INFORMACIÓN Y DOCUMENTOS | H189: SOLICITUD DE INFORMACIÓN HIDROMETEOROLÓGICA | I189: NO | J189: GRUPO DE ATENCIÓN AL CIUDADANO | K189: 44112 | L189: CORREO ELECTRÓNICO | N189: =IFERROR(WORKDAY(C189,T189,DiasNOLaborables),"") -> 44138 | O189: =+IF(C189="","",IF(K189="","SIN RESPUESTA",(IF(K189<=N189,"A TIEMPO","FUERA DE TIEMPO")))) -> A TIEMPO | P189: =IF(K189="","",NETWORKDAYS(C189+1,K189,DiasNOLaborables)) -> 3 | T189: 20
A190: 179 | B190: 20209050090572 | C190: 44109 | D190: ACADEMIA | E190: FEMENINO | F190: CORREO ELECTRÓNICO | G190: SOLICITUD DE INFORMACIÓN Y DOCUMENTOS | H190: SOLICITUD DE INFORMACIÓN HIDROMETEOROLÓGICA | I190: NO | J190: GRUPO DE ATENCIÓN AL CIUDADANO | K190: 44112 | L190: CORREO ELECTRÓNICO | N190: =IFERROR(WORKDAY(C190,T190,DiasNOLaborables),"") -> 44138 | O190: =+IF(C190="","",IF(K190="","SIN RESPUESTA",(IF(K190<=N190,"A TIEMPO","FUERA DE TIEMPO")))) -> A TIEMPO | P190: =IF(K190="","",NETWORKDAYS(C190+1,K190,DiasNOLaborables)) -> 3 | T190: 20
A191: 180 | B191: 20209050090602 | C191: 44109 | D191: ACADEMIA | E191: FEMENINO | F191: CORREO ELECTRÓNICO | G191: SOLICITUD DE INFORMACIÓN Y DOCUMENTOS | H191: SOLICITUD DE INFORMACIÓN HIDROMETEOROLÓGICA | I191: NO | J191: GRUPO DE ATENCIÓN AL CIUDADANO | K191: 44113 | L191: CORREO ELECTRÓNICO | N191: =IFERROR(WORKDAY(C191,T191,DiasNOLaborables),"") -> 44138 | O191: =+IF(C191="","",IF(K191="","SIN RESPUESTA",(IF(K191<=N191,"A TIEMPO","FUERA DE TIEMPO")))) -> A TIEMPO | P191: =IF(K191="","",NETWORKDAYS(C191+1,K191,DiasNOLaborables)) -> 4 | T191: 20
A192: 181 | B192: 20209050090592 | C192: 44109 | D192: ACADEMIA | E192: FEMENINO | F192: CORREO ELECTRÓNICO | G192: SOLICITUD DE INFORMACIÓN Y DOCUMENTOS | H192: SOLICITUD DE INFORMACIÓN HIDROMETEOROLÓGICA | I192: NO | J192: GRUPO DE ATENCIÓN AL CIUDADANO | K192: 44113 | L192: CORREO ELECTRÓNICO | N192: =IFERROR(WORKDAY(C192,T192,DiasNOLaborables),"") -> 44138 | O192: =+IF(C192="","",IF(K192="","SIN RESPUESTA",(IF(K192<=N192,"A TIEMPO","FUERA DE TIEMPO")))) -> A TIEMPO | P192: =IF(K192="","",NETWORKDAYS(C192+1,K192,DiasNOLaborables)) -> 4 | T192: 20
A193: 182 | B193: 20209050090072 | C193: 44109 | D193: ACADEMIA | E193: MASCULINO | F193: CORREO ELECTRÓNICO | G193: SOLICITUD DE INFORMACIÓN Y DOCUMENTOS | H193: SOLICITUD DE INFORMACIÓN HIDROMETEOROLÓGICA | I193: NO | J193: GRUPO DE ATENCIÓN AL CIUDADANO | K193: 44113 | L193: CORREO ELECTRÓNICO | N193: =IFERROR(WORKDAY(C193,T193,DiasNOLaborables),"") -> 44138 | O193: =+IF(C193="","",IF(K193="","SIN RESPUESTA",(IF(K193<=N193,"A TIEMPO","FUERA DE TIEMPO")))) -> A TIEMPO | P193: =IF(K193="","",NETWORKDAYS(C193+1,K193,DiasNOLaborables)) -> 4 | T193: 20
A194: 183 | B194: 20209050090222 | C194: 44109 | D194: CIUDADANO | E194: MASCULINO | F194: CORREO ELECTRÓNICO | G194: SOLICITUD DE INFORMACIÓN Y DOCUMENTOS | H194: SOLICITUD DE INFORMACIÓN HIDROMETEOROLÓGICA | I194: NO | J194: GRUPO DE ATENCIÓN AL CIUDADANO | K194: 44113 | L194: CORREO ELECTRÓNICO | N194: =IFERROR(WORKDAY(C194,T194,DiasNOLaborables),"") -> 44138 | O194: =+IF(C194="","",IF(K194="","SIN RESPUESTA",(IF(K194<=N194,"A TIEMPO","FUERA DE TIEMPO")))) -> A TIEMPO | P194: =IF(K194="","",NETWORKDAYS(C194+1,K194,DiasNOLaborables)) -> 4 | T194: 20
A195: 184 | B195: 20209050090232 | C195: 44109 | D195: CIUDADANO | E195: MASCULINO | F195: CORREO ELECTRÓNICO | G195: SOLICITUD DE INFORMACIÓN Y DOCUMENTOS | H195: SOLICITUD DE INFORMACIÓN HIDROMETEOROLÓGICA | I195: NO | J195: GRUPO DE ATENCIÓN AL CIUDADANO | K195: 44113 | L195: CORREO ELECTRÓNICO | N195: =IFERROR(WORKDAY(C195,T195,DiasNOLaborables),"") -> 44138 | O195: =+IF(C195="","",IF(K195="","SIN RESPUESTA",(IF(K195<=N195,"A TIEMPO","FUERA DE TIEMPO")))) -> A TIEMPO | P195: =IF(K195="","",NETWORKDAYS(C195+1,K195,DiasNOLaborables)) -> 4 | T195: 20
A196: 185 | B196: 20209050090082 | C196: 44109 | D196: CIUDADANO | E196: FEMENINO | F196: CORREO ELECTRÓNICO | G196: SOLICITUD DE INFORMACIÓN Y DOCUMENTOS | H196: SOLICITUD DE INFORMACIÓN HIDROMETEOROLÓGICA | I196: NO | J196: GRUPO DE ATENCIÓN AL CIUDADANO | K196: 44113 | L196: CORREO ELECTRÓNICO | N196: =IFERROR(WORKDAY(C196,T196,DiasNOLaborables),"") -> 44138 | O196: =+IF(C196="","",IF(K196="","SIN RESPUESTA",(IF(K196<=N196,"A TIEMPO","FUERA DE TIEMPO")))) -> A TIEMPO | P196: =IF(K196="","",NETWORKDAYS(C196+1,K196,DiasNOLaborables)) -> 4 | T196: 20
A197: 186 | B197: 20209050090332 | C197: 44109 | D197: ACADEMIA | E197: MASCULINO | F197: CORREO ELECTRÓNICO | G197: SOLICITUD DE INFORMACIÓN Y DOCUMENTOS | H197: SOLICITUD DE INFORMACIÓN HIDROMETEOROLÓGICA | I197: SI | J197: OFICINA DE INFORMÁTICA | K197: 44113 | L197: CORREO ELECTRÓNICO | N197: =IFERROR(WORKDAY(C197,T197,DiasNOLaborables),"") -> 44138 | O197: =+IF(C197="","",IF(K197="","SIN RESPUESTA",(IF(K197<=N197,"A TIEMPO","FUERA DE TIEMPO")))) -> A TIEMPO | P197: =IF(K197="","",NETWORKDAYS(C197+1,K197,DiasNOLaborables)) -> 4 | T197: 20
A198: 187 | B198: 20209050091632 | C198: 44109 | D198: ENTIDAD PÚBLICA | E198: PERSONA JURÍDICA | F198: CORREO ELECTRÓNICO | G198: SOLICITUD DE INFORMACIÓN Y DOCUMENTOS | H198: SOLICITUD DE INFORMACIÓN HIDROMETEOROLÓGICA | I198: NO | J198: GRUPO DE ATENCIÓN AL CIUDADANO | K198: 44113 | L198: CORREO ELECTRÓNICO | N198: =IFERROR(WORKDAY(C198,T198,DiasNOLaborables),"") -> 44138 | O198: =+IF(C198="","",IF(K198="","SIN RESPUESTA",(IF(K198<=N198,"A TIEMPO","FUERA DE TIEMPO")))) -> A TIEMPO | P198: =IF(K198="","",NETWORKDAYS(C198+1,K198,DiasNOLaborables)) -> 4 | T198: 20
A199: 188 | B199: 20209050091532 | C199: 44109 | D199: CIUDADANO | E199: FEMENINO | F199: CORREO ELECTRÓNICO | G199: SOLICITUD DE INFORMACIÓN Y DOCUMENTOS | H199: SOLICITUD DE INFORMACIÓN HIDROMETEOROLÓGICA | I199: NO | J199: GRUPO DE ATENCIÓN AL CIUDADANO | K199: 44114 | L199: CORREO ELECTRÓNICO | N199: =IFERROR(WORKDAY(C199,T199,DiasNOLaborables),"") -> 44138 | O199: =+IF(C199="","",IF(K199="","SIN RESPUESTA",(IF(K199<=N199,"A TIEMPO","FUERA DE TIEMPO")))) -> A TIEMPO | P199: =IF(K199="","",NETWORKDAYS(C199+1,K199,DiasNOLaborables)) -> 4 | T199: 20
A200: 189 | B200: 20209050090092 | C200: 44109 | D200: ACADEMIA | E200: FEMENINO | F200: CORREO ELECTRÓNICO | G200: SOLICITUD DE INFORMACIÓN Y DOCUMENTOS | H200: SOLICITUD DE INFORMACIÓN HIDROMETEOROLÓGICA | I200: NO | J200: GRUPO DE ATENCIÓN AL CIUDADANO | K200: 44113 | L200: CORREO ELECTRÓNICO | N200: =IFERROR(WORKDAY(C200,T200,DiasNOLaborables),"") -> 44138 | O200: =+IF(C200="","",IF(K200="","SIN RESPUESTA",(IF(K200<=N200,"A TIEMPO","FUERA DE TIEMPO")))) -> A TIEMPO | P200: =IF(K200="","",NETWORKDAYS(C200+1,K200,DiasNOLaborables)) -> 4 | T200: 20
... 3513 more rows

Sheet Hoja5
E1: TIPO DE ENTIDAD O USUARIO | F1: (Todas)
I2: ESTADO (A TIEMPO, FUERA DE TIEMPO, SIN RESPUESTA) | J2: (Todas) | O2: ESTADO | P2: CANTIDAD | Q2: PROMEDIO | S2: USUARIO | T2: cantidad | U2: PROMEDIO | W2: CANAL | X2: CANTIDAD | Y2: PROMEDIO | AA2: PRODUCTO O SERVICIO SOLICITADO | AB2: CANTIDAD | AC2: PROMEDIO | AE2: ESTADO | AF2: CANTIDA | AG2: DIAS PROMEDIO | AI2: MEDIO RECEPCION | AJ2: CANTIDAD | AK2: PROMEDIO | AM2: DESDE | AN2: 44105 | AV2: GENERO | AW2: CANTIDAD | AX2: PROMEDIO
A3: DIAS, MES, TRIMESTRE | B3: CANTIDAD | C3: PROMEDIO | E3: TIPO REQUERIMIENTO | F3: CANTIDAD | G3: PROMEDIO | O3: A TIEMPO | P3: 3693 | Q3: 0.9975688817 | S3: ACADEMIA | T3: 617 | U3: 0.1666666667 | W3: CORREO ELECTRÓNICO | X3: 3695 | Y3: 1 | AA3: ACREDITACIÓN DE LABORATORIOS | AB3: 38 | AC3: 0.01026472177 | AE3: A TIEMPO | AF3: 3693 | AG3: 7.127267804 | AI3: CORREO CERTIFICADO | AJ3: 12 | AK3: 0.003241491086 | AM3: HASTA | AN3: 44196 | AV3: FEMENINO | AW3: 1456 | AX3: 0.3933009184
A4: oct | B4: 1792 | C4: 0.4840626688 | E4: CERTIFICACIONES DE TIEMPO, CLIMA Y EVENTOS HIDROLÓGICOS | F4: 461 | G4: 0.1245272825 | J4: CANTIDAD | K4: PROMEDIO | M4: CANTIDAD | O4: FUERA DE TIEMPO | P4: 7 | Q4: 0.0018908698 | S4: CIUDADANO | T4: 1895 | U4: 0.5118854673 | W4: (en blanco) | Y4: 0 | AA4: ADMINISTRATIVA | AB4: 301 | AC4: 0.0813074014 | AE4: FUERA DE TIEMPO | AF4: 7 | AG4: 24.14285714 | AI4: CORREO ELECTRÓNICO | AJ4: 1939 | AK4: 0.5237709346 | AN4: =DATEDIF(AN2,AN3,"m")+1 -> 3 | AV4: MASCULINO | AW4: 1976 | AX4: 0.5337655321
A5: nov | B5: 1134 | C5: 0.3063209076 | E5: PETICIÓN | F5: 55 | G5: 0.01485683414 | I5: DIRECCIÓN GENERAL | J5: 4 | K5: 0.001080497029 | M5: 3702 | O5: SIN RESPUESTA | P5: 2 | Q5: 0.0005402485143 | S5: EMPRESA PRIVADA | T5: 615 | U5: 0.1661264182 | W5: Total general | X5: 3695 | Y5: 1 | AA5: ASESORÍAS Y CHARLAS | AB5: 8 | AC5: 0.002160994057 | AE5: SIN RESPUESTA | AF5: 2 | AI5: MODULO CONTACTENOS | AJ5: 1750 | AK5: 0.47271745 | AM5: Mes | AN5: Cantidad | AO5: En termino | AP5: Fuera de termino | AR5: Fecha | AS5: Cantidad PQRS | AT5: PROMEDIO | AV5: PERSONA JURÍDICA | AW5: 270 | AX5: 0.07293354943
A6: dic | B6: 776 | C6: 0.2096164236 | E6: PETICIÓN ENTRE AUTORIDADES | F6: 6 | G6: 0.001620745543 | I6: GRUPO DE ADMINISTRACIÓN Y DESARROLLO DEL TALENTO HUMANO | J6: 186 | K6: 0.05024311183 | O6: Total general | P6: 3702 | Q6: 1 | S6: ENTIDAD PÚBLICA | T6: 165 | U6: 0.04457050243 | AA6: BOSQUES | AB6: 25 | AC6: 0.006753106429 | AE6: Total general | AF6: 3702 | AG6: 7.159459459 | AI6: MODULO CONTACTENOS | AJ6: 1 | AK6: 0.0002701242572 | AM6: =IF(ROWS(AM$6:AM6)>AN$4,"",MIN(AN$3,EOMONTH(AM12,1))) -> 2020-10-31 | AN6: =COUNTIFS(Tabla1[FECHA DE REQUERIMIENTO (dd/mm/aaaa)],">"&AM12,Tabla1[FECHA DE REQUERIMIENTO (dd/mm/aaaa)],"<="&AM6) -> 1792 | AO6: =COUNTIFS(Tabla1[FECHA DE REQUERIMIENTO (dd/mm/aaaa)],">"&AM12,Tabla1[FECHA DE REQUERIMIENTO (dd/mm/aaaa)],"<="&AM6,Tabla1[ESTADO (A TIEMPO, FUERA DE TIEMPO, SIN RESPUESTA)],"A TIEMPO") -> 1788 | AP6: =AN6-AO6 -> 4 | AS6: 0 | AT6: 0 | AV6: Total general | AW6: 3702 | AX6: 1
A7: Total general | B7: 3702 | C7: 1 | E7: REMISIÓN POR COMPETENCIA | F7: 1 | G7: 0.0002701242572 | I7: GRUPO DE ATENCIÓN AL CIUDADANO | J7: 2314 | K7: 0.6250675311 | S7: EXTRANJERO | T7: 1 | U7: 0.0002701242572 | AA7: CAMBIO CLIMÁTICO | AB7: 5 | AC7: 0.001350621286 | AI7: Total general | AJ7: 3702 | AK7: 1 | AM7: =IF(ROWS(AM$6:AM7)>AN$4,"",MIN(AN$3,EOMONTH(AM6,1))) -> 2020-11-30 | AN7: =COUNTIFS(Tabla1[FECHA DE REQUERIMIENTO (dd/mm/aaaa)],">"&AM6,Tabla1[FECHA DE REQUERIMIENTO (dd/mm/aaaa)],"<="&AM7) -> 1134 | AO7: =COUNTIFS(Tabla1[FECHA DE REQUERIMIENTO (dd/mm/aaaa)],">"&AM6,Tabla1[FECHA DE REQUERIMIENTO (dd/mm/aaaa)],"<="&AM7,Tabla1[ESTADO (A TIEMPO, FUERA DE TIEMPO, SIN RESPUESTA)],"A TIEMPO") -> 1131 | AP7: =AN7-AO7 -> 3 | AR7: 44135 | AS7: 1792 | AT7: 0.4840626688
E8: SOLICITUD CONGRESITAS | F8: 4 | G8: 0.001080497029 | I8: GRUPO DE COMUNICACIONES | J8: 11 | K8: 0.002971366829 | S8: FUNCIONARIO IDEAM | T8: 149 | U8: 0.04024851432 | AA8: CERTIFICACIONES DE TIEMPO Y CLIMA | AB8: 480 | AC8: 0.1296596434 | AM8: =IF(ROWS(AM$6:AM8)>AN$4,"",MIN(AN$3,EOMONTH(AM7,1))) -> 2020-12-31 | AN8: =COUNTIFS(Tabla1[FECHA DE REQUERIMIENTO (dd/mm/aaaa)],">"&AM7,Tabla1[FECHA DE REQUERIMIENTO (dd/mm/aaaa)],"<="&AM8) -> 776 | AO8: =COUNTIFS(Tabla1[FECHA DE REQUERIMIENTO (dd/mm/aaaa)],">"&AM7,Tabla1[FECHA DE REQUERIMIENTO (dd/mm/aaaa)],"<="&AM8,Tabla1[ESTADO (A TIEMPO, FUERA DE TIEMPO, SIN RESPUESTA)],"A TIEMPO") -> 774 | AP8: 2 | AR8: 44165 | AS8: 1134 | AT8: 0.3063209076
E9: SOLICITUD DE INFORMACIÓN Y DOCUMENTOS | F9: 3155 | G9: 0.8522420313 | I9: GRUPO DE CONTABILIDAD | J9: 2 | K9: 0.0005402485143 | S9: ONG/ORG | T9: 4 | U9: 0.001080497029 | AA9: CERTIFICACIONES HIDROLOGICAS | AB9: 3 | AC9: 0.0008103727715 | AM9: =IF(ROWS(AM$6:AM9)>AN$4,"",MIN(AN$3,EOMONTH(AM8,1))) ->  | AN9: =COUNTIFS(Tabla1[FECHA DE REQUERIMIENTO (dd/mm/aaaa)],">"&AM8,Tabla1[FECHA DE REQUERIMIENTO (dd/mm/aaaa)],"<="&AM9) -> 0 | AO9: =COUNTIFS(Tabla1[FECHA DE REQUERIMIENTO (dd/mm/aaaa)],">"&AM8,Tabla1[FECHA DE REQUERIMIENTO (dd/mm/aaaa)],"<="&AM9,Tabla1[ESTADO (A TIEMPO, FUERA DE TIEMPO, SIN RESPUESTA)],"A TIEMPO") -> 0 | AP9: 0 | AR9: 44196 | AS9: 776 | AT9: 0.2096164236
E10: SOLICITUD JUDICIAL | F10: 20 | G10: 0.005402485143 | I10: GRUPO DE GESTIÓN DOCUMENTAL Y CENTRO DE DOCUMENTACIÓN | J10: 11 | K10: 0.002971366829 | S10: ACADEMIA | T10: 256 | U10: 0.06915180983 | AA10: CLIMATOLOGÍA | AB10: 41 | AC10: 0.01107509454 | AM10: =IF(ROWS(AM$6:AM10)>AN$4,"",MIN(AN$3,EOMONTH(AM9,1))) ->  | AN10: =COUNTIFS(Tabla1[FECHA DE REQUERIMIENTO (dd/mm/aaaa)],">"&AM9,Tabla1[FECHA DE REQUERIMIENTO (dd/mm/aaaa)],"<="&AM10) -> 0 | AO10: =COUNTIFS(Tabla1[FECHA DE REQUERIMIENTO (dd/mm/aaaa)],">"&AM9,Tabla1[FECHA DE REQUERIMIENTO (dd/mm/aaaa)],"<="&AM10,Tabla1[ESTADO (A TIEMPO, FUERA DE TIEMPO, SIN RESPUESTA)],"A TIEMPO") -> 0 | AP10: 0 | AR10: Total general | AS10: 3702 | AT10: 1
E11: Total general | F11: 3702 | G11: 1 | I11: GRUPO DE SERVICIOS ADMINISTRATIVOS | J11: 1 | K11: 0.0002701242572 | S11: Total general | T11: 3702 | U11: 1 | AA11: ESTUDIO NACIONAL DEL AGUA | AB11: 4 | AC11: 0.001080497029 | AM11: =IF(ROWS(AM$6:AM11)>AN$4,"",MIN(AN$3,EOMONTH(AM10,1))) ->  | AN11: =COUNTIFS(Tabla1[FECHA DE REQUERIMIENTO (dd/mm/aaaa)],">"&AM10,Tabla1[FECHA DE REQUERIMIENTO (dd/mm/aaaa)],"<="&AM11) -> 0 | AO11: =COUNTIFS(Tabla1[FECHA DE REQUERIMIENTO (dd/mm/aaaa)],">"&AM10,Tabla1[FECHA DE REQUERIMIENTO (dd/mm/aaaa)],"<="&AM11,Tabla1[ESTADO (A TIEMPO, FUERA DE TIEMPO, SIN RESPUESTA)],"A TIEMPO") -> 0 | AP11: =AN11-AO11 -> 0
I12: GRUPO DE TESORERÍA | J12: 19 | K12: 0.005132360886 | AA12: JURIDICO | AB12: 6 | AC12: 0.001620745543 | AM12: =AN2-1 -> 44104 | AN12: =SUM(OFFSET(AN6,,,$AN4,)) -> 3702 | AO12: =SUM(OFFSET(AO6,,,$AN4,)) -> 3693 | AP12: =SUM(OFFSET(AP6,,,$AN4,)) -> 9
I13: OFICINA ASESORA DE PLANEACIÓN | J13: 2 | K13: 0.0005402485143 | AA13: LABORATORIO DE CALIDAD AMBIENTAL | AB13: 1 | AC13: 0.0002701242572
I14: OFICINA ASESORA JURÍDICA | J14: 88 | K14: 0.02377093463 | AA14: OPERACIÓN DE REDES | AB14: 6 | AC14: 0.001620745543
I15: OFICINA DE INFORMÁTICA | J15: 63 | K15: 0.0170178282 | AA15: PRONÓSTICOS Y ALERTAS | AB15: 26 | AC15: 0.007023230686
I16: OFICINA DEL SERVICIO DE PRONÓSTICOS Y ALERTAS | J16: 43 | K16: 0.01161534306 | AA16: REGISTROS AMBIENTALES | AB16: 98 | AC16: 0.0264721772
I17: SECRETARÍA GENERAL | J17: 2 | K17: 0.0005402485143 | AA17: SIA | AB17: 6 | AC17: 0.001620745543
I18: SUBDIRECCIÓN DE ECOSISTEMAS E INFORMACIÓN AMBIENTAL | J18: 111 | K18: 0.02998379254 | AA18: SIRH | AB18: 32 | AC18: 0.008643976229
I19: SUBDIRECCIÓN DE ESTUDIOS AMBIENTALES | J19: 201 | K19: 0.05429497569 | AA19: SOLICITUD DE INFORMACIÓN HIDROMETEOROLÓGICA | AB19: 2608 | AC19: 0.7044840627
I20: SUBDIRECCIÓN DE HIDROLOGÍA | J20: 86 | K20: 0.02323068612 | AA20: SUELOS Y TIERRAS | AB20: 5 | AC20: 0.001350621286
I21: SUBDIRECCIÓN DE METEOROLOGÍA | J21: 557 | K21: 0.1504592112 | AA21: WEB Y CORREO | AB21: 9 | AC21: 0.002431118314
I22: AREA OPERATIVA No. 6 | J22: 1 | K22: 0.0002701242572 | AA22: Total general | AB22: 3702 | AC22: 1
I23: Total general | J23: 3702 | K23: 1

Sheet Hoja2
A2: ANALISIS ESTADO SOLICITUDES
A16: TOTAL SOLICITUDES | G16: =+Hoja5!M5 -> 3702
